Workbook

Sheet start (hidden)
B2: Das Makro ist momentan nicht aktiviert
B3: Bitte Aktivieren Sie das Makro
B4: Ohne Makro funktioniert diese Datei nicht
B6: roland.schnurr@sixsigmablackbelt.de
B8: https://www.sixsigmablackbelt.de
B10: Abhängig von den Einstellungen in Microsoft Office kann es sein, dass Microsoft Dateien aus dem Internet
B11: mit der Endung .xlsb grundsätzlich beim Öffnen mit folgendem Warnhinweis versieht.
B23: Alle Dateien auf dieser Website sind grundsätzlich mit virustotal auf Freiheit von Viren überprüft.
B24: Virustotal prüft mit den 63 gängigsten Virenprogrammen auf Virenfreiheit.
B26: Möchten Sie mit unseren Dateien arbeiten und Microsoft gibt Ihnen obigen Hinweis, gehen Sie wie folgt vor:
B28: ="- Speichern Sie die Datei" -> - Speichern Sie die Datei
B29: ="- Wählen Sie den Speicherort (im Standardordner „downloads“)." -> - Wählen Sie den Speicherort (im Standardordner „downloads“).
B30: ="- Datei auswählen" -> - Datei auswählen
B31: ="- rechte Maustaste" -> - rechte Maustaste
B32: ="- Ein Fenster erscheint. Der letzte Punkt in diesem Fenster ist „Eigenschaften“" -> - Ein Fenster erscheint. Der letzte Punkt in diesem Fenster ist „Eigenschaften“
B33: ="- Wählen Sie diesen Punkt aus" -> - Wählen Sie diesen Punkt aus
B34: ="- Setzen Sie in dem erscheinenden Fenster den Haken bei „Zulassen“ (siehe unten)" -> - Setzen Sie in dem erscheinenden Fenster den Haken bei „Zulassen“ (siehe unten)
B35: ="- Klicken Sie auf „Übernehmen“ und dann auf „OK“" -> - Klicken Sie auf „Übernehmen“ und dann auf „OK“
B36: ="- Danach können Sie die Datei öffnen und mit ihr arbeiten." -> - Danach können Sie die Datei öffnen und mit ihr arbeiten.

Sheet input
F3: Messprozessanaylse Verfahren 2 Anova (Basis Bosch Heft 10)
C4: Messmittel | F4: Merkmal | J4: Normal | O4: Diese Version ist eingeschränkt
C5: Bez.: | F5: Objekt: | J5: Bez.: | O5: - Es sind nur 3 Teile berechenbar
C6: Nummer: | F6: Nummer: | J6: Nummer | O6: ="- Die Datei ist nur als .xlsm speicherbar" -> - Die Datei ist nur als .xlsm speicherbar
C7: Auflösung: | F7: Zeichnung: | J7: Nennmaß:
C8: Hersteller: | F8: Einheit: | J8: Einheit: | O8: Die Version für 10 zu berechnende Teile (M0461) können Sie unter untenstehendem Link erwerben
C9: Akt. Dat.: | D9: 2015-01-04 | F9: OGW | G9: 4 | O9: =HYPERLINK("https://www.sixsigmablackbelt.de/preisvergleich/","Preise und Bestellung") -> Preise und Bestellung
C10: Bearbeiter: | F10: UGW | G10: -4 | H10: Toleranz: | I10: =G9-G10 -> 8 | O10: Fragen gerne an:
C11: Prüferverfahren Beschreibung: Alle blauen Zellen können verändert werden | O11: =HYPERLINK("mailto:roland.schnurr@sixsigmablackbelt.de","roland.schnurr@sixsigmablackbelt.de") -> roland.schnurr@sixsigmablackbelt.de
C13: Ergebnis aus MSA Verfahren 1 | F13: Anzahl der Teile n | I13: =COUNT(D20:D29) -> 3 | J13: Messsystem ist
F14: Anzahl der Prüfer k | I14: =COUNT(D20)+COUNT(G20)+COUNT(J20) -> 3 | J14: fähig bis | L14: 0.1
C15: Protokoll Nr. | F15: Anz. Prüfungen je Prüfer / Objekt r | I15: =COUNT(D20:F20) -> 3 | J15: akzeptabel bis | L15: 0.3
C16: Das Prüfmittel | E16: ist fähig | F16: Bedingung k*n*r > 30 | I16: =IF((AnzahlTeile*AnzahlPruefer*AnzahlMessungen)>=30,"erfüllt","nicht erfüllt") -> nicht erfüllt | J16: nicht akzeptabel ab | L16: =L15 -> 0.3
D18: Prüfer j=1 | E18: Gerber | G18: Prüfer j=2 | H18: Bohnert | J18: Prüfer j=3 | K18: Zimmer
C19: Teil Nr. | D19: m=1 | E19: m=2 | F19: m=3 | G19: m=1 | H19: m=2 | I19: m=3 | J19: m=1 | K19: m=2 | L19: m=3
C20: i=1 | D20: 0.29 | E20: 0.41 | F20: 0.64 | G20: 0.08 | H20: 0.25 | I20: 0.07 | J20: 0.04 | K20: -0.11 | L20: -0.15
C21: i=2 | D21: -0.56 | E21: -0.68 | F21: -0.58 | G21: -0.47 | H21: -1.22 | I21: -0.68 | J21: -1.38 | K21: -1.13 | L21: -0.96
C22: i=3 | D22: 1.34 | E22: 1.17 | F22: 1.27 | G22: 1.19 | H22: 0.94 | I22: 1.34 | J22: 0.88 | K22: 1.09 | L22: 0.67
C23: i=4
C24: i=5
C25: i=6
C26: i=7
C27: i=8
C28: i=9
C29: i=10
H32: Standard- abweichung | I32: Streubreite | K32: Anteil an Gesamt- streubreite | L32: Anteil der Toleranz
C33: Einflussgrößen | H33: SD | I33: SV | K33: %SV | L33: %T
C34: Teile (Part Variation) Teilestreuung | G34: PV | H34: =calculation!G33 -> 0.9734360676 | I34: =calculation!H33 -> 5.840616406 | J34: %PV | K34: =calculation!J33 -> 0.9562180204 | L34: =calculation!K33 -> 0.7300770507
C35: Prüfer (Appraiser Variation) Vergleichspräzision | G35: AV | H35: =calculation!G34 -> 0.2350728807 | I35: =calculation!H34 -> 1.410437284 | J35: %AV | K35: =calculation!J34 -> 0.2309149333 | L35: =calculation!K34 -> 0.1763046606
C36: Wechselwirkung (Interaction) | G36: INT | H36: =calculation!G35 -> 0 | I36: =calculation!H35 -> 0 | J36: %IA | K36: =calculation!J35 -> 0 | L36: =calculation!K35 -> 0
C37: Messeinrichtung (Equipment Variation) Wiederholpräzision | G37: EV | H37: =calculation!G36 -> 0.1830300522 | I37: =calculation!H36 -> 1.098180313 | J37: %EV | K37: =calculation!J36 -> 0.1797926335 | L37: =calculation!K36 -> 0.1372725391
C38: Prüfsystemstreuung | G38: GRR | H38: =calculation!G37 -> 0.2979249222 | I38: =calculation!H37 -> 1.787549533 | J38: %GRR | K38: =calculation!J37 -> 0.2926552537 | L38: =calculation!K37 -> 0.2234436916
C39: Gesamtstreuung (Total Variation) | G39: TV | H39: =calculation!G38 -> 1.018006403 | I39: =calculation!H38 -> 6.108038419 | J39: %TV | K39: =calculation!J38 -> 1 | L39: =calculation!K38 -> 0.7635048024
C40: Anzahl unterscheidbarer Klassen (min 5) | G40: ndc | H40: =calculation!G39 -> 4
C43: =IF(L38<L14,"Das Messsystem ist fähig",IF(L38>L15,"Das Messsystem ist nicht fähig","Das Messsystem ist bedingt fähig")) -> Das Messsystem ist bedingt fähig
C44: =IF(H40<5,"(ndc) Der Messprozess ist nicht in der Lage genügend viele Teile unterscheidbar zu messen","(ndc) Der Messprozess ist in der Lage genügend viele Teile unterscheidbar zu messen") -> (ndc) Der Messprozess ist nicht in der Lage genügend viele Teile unterscheidbar zu messen
C45: =IF(L35=0,"Der Einfluss durch den Prüfer ist nicht signifikant","Der Einfluss durch den Prüfer ist signifikant") -> Der Einfluss durch den Prüfer ist signifikant
C46: =IF(L34=0,"Der Einfluss durch die einzelnen Teile ist nicht signifikant","Der Einfluss durch die einzelnen Teile ist signifikant") -> Der Einfluss durch die einzelnen Teile ist signifikant
C47: =IF(L36=0,"Der Einfluss durch die Wechselwirkung Prüfer und Teil ist nicht signifikant","Der Einfluss durch die Wechselwirkung Prüfer und Teil ist signifikant") -> Der Einfluss durch die Wechselwirkung Prüfer und Teil ist nicht signifikant
L52: =0 -> 0
L53: =L52+L14 -> 0.1
L54: =L15-L14 -> 0.2
L55: 100
C56: Datum: | D56: ________ | F56: Unterschrift: | G56: __________________ | J56: Abteilung: | K56: __________________

Sheet graphic
B13: Sekundärachse in obigem Diagramm muss manuell angepaßt werden
B14: Einteilung Sekundärachse muß gleich Einteilung Primärachse sein
B16: X Quer Karte
B17: =input!E18 -> Gerber | E17: =input!H18 -> Bohnert | H17: =input!K18 -> Zimmer
B28: R Karte
B29: =B17 -> Gerber | E29: =E17 -> Bohnert | H29: =H17 -> Zimmer

Sheet minitab beispiel

Sheet calculation (hidden)
A1: Max Pichler AG
E2: Messprozessanaylse Verfahren 2 Anova (Basis Bosch Heft 10)
B3: Messmittel | E3: Merkmal | I3: Normal
B4: Bez.: | E4: Objekt: | I4: Be.:
B5: Nummer: | E5: Nummer: | I5: Nummer
B6: Auflösung: | E6: Zeichnungsnr. | I6: Nennmaß:
B7: Auflösung: | E7: Einheit: | I7: Einheit:
B8: Akt. Dat.: | C8: 2015-01-04 | E8: OGW | F8: =input!G9 -> 4
B9: Bearbeiter: | E9: UGW | F9: =input!G10 -> -4 | G9: Toleranz: | H9: =input!I10 -> 8
B10: Prüferverfahren Beschreibung:
B12: Ergebnis aus MSA Verfahren 1 | E12: Anzahl der Teile n | H12: =COUNT(C19:C28) -> 3 | I12: Messsystem ist
E13: Anzahl der Prüfer k | H13: =COUNT(C19)+COUNT(F19)+COUNT(I19) -> 3 | I13: fähig bis | K13: =input!L14 -> 0.1
B14: Protokoll Nr. | E14: Anz. Prüfungen je Prüfer / Objekt r | H14: =COUNT(C19:E19) -> 3 | I14: akzeptabel bis | K14: =input!L15 -> 0.3
B15: Das Prüfmittel | D15: =input!E16 -> ist fähig | E15: Bedingung k*n*r > 30 | H15: =IF((AnzahlTeile*AnzahlPruefer*AnzahlMessungen)>=30,"erfüllt","nicht erfüllt") -> nicht erfüllt | I15: nicht akzeptabel ab | K15: =input!L16 -> 0.3
W16: Messeinrichtung
C17: Prüfer j=1 | D17: =input!E18 -> Gerber | F17: Prüfer j=2 | G17: =input!H18 -> Bohnert | I17: Prüfer j=3 | J17: =IF(input!K18="","",input!K18) -> Zimmer | O17: Mittelwert der Spalte C-K | P17: =D17 -> Gerber | Q17: =G17 -> Bohnert | R17: =J17 -> Zimmer | S17: Einfluß Teil | W17: Prüfer 1 | Z17: Prüfer 2 | AC17: Prüfer 3 | AF17: Teil
B18: Teil Nr. | C18: m=1 | D18: m=2 | E18: m=3 | F18: m=1 | G18: m=2 | H18: m=3 | I18: m=1 | J18: m=2 | K18: m=3 | O18: Yi | P18: Yi1m | Q18: Yi2m | R18: Yi1m | S18: ="(Yi-Yijm)^2" -> (Yi-Yijm)^2 | T18: Wechselwirkung Teil i Prüfer 1 | U18: Wechselwirkung Teil i Prüfer 2 | V18: Wechselwirkung Teil i Prüfer 3 | W18: m=1 | X18: m=2 | Y18: m=3 | Z18: m=1 | AA18: m=2 | AB18: m=3 | AC18: m=1 | AD18: m=2 | AE18: m=3 | AF18: m=1 | AG18: m=2 | AH18: m=3 | AI18: m=1 | AJ18: m=2 | AK18: m=3 | AL18: m=1 | AM18: m=2 | AN18: m=3
B19: i=1 | C19: =IF(input!D20="","",input!D20) -> 0.29 | D19: =IF(input!E20="","",input!E20) -> 0.41 | E19: =IF(input!F20="","",input!F20) -> 0.64 | F19: =IF(input!G20="","",input!G20) -> 0.08 | G19: =IF(input!H20="","",input!H20) -> 0.25 | H19: =IF(input!I20="","",input!I20) -> 0.07 | I19: =IF(input!J20="","",input!J20) -> 0.04 | J19: =IF(input!K20="","",input!K20) -> -0.11 | K19: =IF(input!L20="","",input!L20) -> -0.15 | O19: =AVERAGE(C19:K19) -> 0.1688888889 | P19: =AVERAGE(C19:E19) -> 0.4466666667 | Q19: =AVERAGE(F19:H19) -> 0.1333333333 | R19: =IF(I19="","",AVERAGE(I19:K19)) -> -0.07333333333 | S19: =(O19-$P$35)^2 -> 0.0009 | T19: =(P19-$P$32-O19+$P$35)^2 -> 0.0025 | U19: =(Q19-$P$33-O19+$P$35)^2 -> 0.004011111111 | V19: =IF(I19="","",(R19-$P$34-O19+$P$35)^2) -> 0.0001777777778 | W19: =(C19-P19)^2 -> 0.02454444444 | X19: =(D19-P19)^2 -> 0.001344444444 | Y19: =IF(E19="","",(E19-P19)^2) -> 0.03737777778 | Z19: =(F19-Q19)^2 -> 0.002844444444 | AA19: =(G19-Q19)^2 -> 0.01361111111 | AB19: =IF(H19="","",(H19-Q19)^2) -> 0.004011111111 | AC19: =IF(I19="","",(I19-R19)^2) -> 0.01284444444 | AD19: =IF(J19="","",(J19-R19)^2) -> 0.001344444444 | AE19: =IF(K19="","",(K19-R19)^2) -> 0.005877777778 | AF19: =(C19-$P$35)^2 -> 0.0228345679 | AG19: 0.07350123457 | AH19: =IF(E19="","",(E19-$P$35)^2) -> 0.2511123457 | AI19: =(F19-$P$35)^2 -> 0.003467901235 | AJ19: 0.01234567901 | AK19: =IF(H19="","",(H19-$P$35)^2) -> 0.004745679012 | AL19: 0.009779012346 | AM19: 0.06194567901 | AN19: 0.08345679012
B20: i=2 | C20: =IF(input!D21="","",input!D21) -> -0.56 | D20: =IF(input!E21="","",input!E21) -> -0.68 | E20: =IF(input!F21="","",input!F21) -> -0.58 | F20: =IF(input!G21="","",input!G21) -> -0.47 | G20: =IF(input!H21="","",input!H21) -> -1.22 | H20: =IF(input!I21="","",input!I21) -> -0.68 | I20: =IF(input!J21="","",input!J21) -> -1.38 | J20: =IF(input!K21="","",input!K21) -> -1.13 | K20: =IF(input!L21="","",input!L21) -> -0.96 | O20: =IF(C20="","",AVERAGE(C20:K20)) -> -0.8511111111 | P20: =IF(C20="","",AVERAGE(C20:E20)) -> -0.6066666667 | Q20: =IF(F20="","",AVERAGE(F20:H20)) -> -0.79 | R20: =IF(I20="","",AVERAGE(I20:K20)) -> -1.156666667 | S20: =IF(O20="","",(O20-$P$35)^2) -> 0.9801 | T20: =IF(P20="","",(P20-$P$32-O20+$P$35)^2) -> 0.0002777777778 | U20: =IF(Q20="","",(Q20-$P$33-O20+$P$35)^2) -> 0.001111111111 | V20: =IF(I20="","",(R20-$P$34-O20+$P$35)^2) -> 0.0025 | W20: =IF(P20="","",(C20-P20)^2) -> 0.002177777778 | X20: =IF(P20="","",(D20-P20)^2) -> 0.005377777778 | Y20: =IF(E20="","",(E20-P20)^2) -> 0.0007111111111 | Z20: =IF(Q20="","",(F20-Q20)^2) -> 0.1024 | AA20: =IF(Q20="","",(G20-Q20)^2) -> 0.1849 | AB20: =IF(H20="","",(H20-Q20)^2) -> 0.0121 | AC20: 0.04987777778 | AD20: =IF(J20="","",(J20-R20)^2) -> 0.0007111111111 | AE20: =IF(K20="","",(K20-R20)^2) -> 0.03867777778 | AF20: =IF(C20="","",(C20-$P$35)^2) -> 0.488445679 | AG20: =IF(D20="","",(D20-$P$35)^2) -> 0.6705790123 | AH20: 0.5168012346 | AI20: =IF(F20="","",(F20-$P$35)^2) -> 0.370745679 | AJ20: =IF(G20="","",(G20-$P$35)^2) -> 1.846579012 | AK20: 0.6705790123 | AL20: 2.307023457 | AM20: 1.610079012 | AN20: 1.20755679
B21: i=3 | C21: =IF(input!D22="","",input!D22) -> 1.34 | D21: =IF(input!E22="","",input!E22) -> 1.17 | E21: =IF(input!F22="","",input!F22) -> 1.27 | F21: =IF(input!G22="","",input!G22) -> 1.19 | G21: =IF(input!H22="","",input!H22) -> 0.94 | H21: =IF(input!I22="","",input!I22) -> 1.34 | I21: =IF(input!J22="","",input!J22) -> 0.88 | J21: =IF(input!K22="","",input!K22) -> 1.09 | K21: =IF(input!L22="","",input!L22) -> 0.67 | O21: 1.098888889 | P21: 1.26 | Q21: 1.156666667 | R21: 0.88 | S21: 0.9216 | T21: 0.004444444444 | U21: 0.0009 | V21: 0.001344444444 | W21: 0.0064 | X21: 0.0081 | Y21: 0.0001 | Z21: 0.001111111111 | AA21: 0.04694444444 | AB21: 0.03361111111 | AC21: 0 | AD21: 0.0441 | AE21: 0.0441 | AF21: 1.442667901 | AG21: 1.063190123 | AH21: 1.279412346 | AI21: 1.104834568 | AJ21: 0.6417790123 | AK21: 1.442667901 | AL21: 0.549245679 | AM21: 0.9046123457 | AN21: 0.2820790123
B22: i=4
B23: i=5
B24: i=6
B25: i=7
B26: i=8
B27: i=9
B28: i=10 | S28: =IF(O28="","",(O28-$P$35)^2) ->  | U28: =IF(Q28="","",(Q28-$P$33-O28+$P$35)^2) ->  | Z28: =IF(Q28="","",(F28-Q28)^2) ->  | AA28: =IF(Q28="","",(G28-Q28)^2) ->  | AF28: =IF(C28="","",(C28-$P$35)^2) ->  | AG28: =IF(D28="","",(D28-$P$35)^2) ->  | AI28: =IF(F28="","",(F28-$P$35)^2) ->  | AJ28: =IF(G28="","",(G28-$P$35)^2) -> 
T29: 0.7056000233 | U29: 0.5335000157 | V29: 0.5795999765 | W29: 0.2896000147 | X29: 0.3019999862 | Y29: 0.7748000026 | Z29: 0.01410000026 | AA29: 0.760800004 | AB29: 0.8144999743 | AC29: 0.709100008 | AD29: 0.04540000111 | AE29: 0.4140999913 | AF29: 0.8626999855 | AG29: 0.7904999852 | AH29: 0.3736000061 | AI29: 0.9620000124 | AJ29: 0.8715000153 | AK29: 0.05629999936 | AL29: 0.9495999813 | AM29: 0.3641000092 | AN29: 0.5249000192 | AO29: 0.7671999931 | AP29: 0.05359999835 | AQ29: 0.5924999714 | AR29: 0.4688000083 | AS29: 0.2982000113 | AT29: 0.622699976 | AU29: 0.6478999853 | AV29: 0.2637999952 | AW29: 0.279399991 | AX29: 0.8299000263 | AY29: 0.8246999979 | AZ29: 0.5892000198 | BA29: 0.986100018 | BB29: 0.9110000134 | BC29: 0.2268999964 | BD29: 0.695200026 | BE29: 0.9800999761 | BF29: 0.2440000027 | BG29: 0.5339000225 | BH29: 0.1063999981 | BI29: 0.9994999766 | BJ29: 0.6761999726 | BK29: 0.01579999924 | BL29: 0.5752000213 | BM29: 0.1001000032 | BN29: 0.1031000018 | BO29: 0.7989000082 | BP29: 0.2845000029 | BQ29: 0.04569999874 | BR29: 0.2958000004 | BS29: 0.3820999861 | BT29: 0.300999999 | BU29: 0.9485999942 | BV29: 0.9799000025 | BW29: 0.4013999999 | BX29: 0.2782999873 | BY29: 0.1605000049 | BZ29: 0.1629000008 | CA29: 0.646600008 | CB29: 0.410100013 | CC29: 0.412800014 | CD29: 0.7128000259 | CE29: 0.3262999952 | CF29: 0.6331999898 | CG29: 0.2075999975 | CH29: 0.1861000061 | CI29: 0.5834000111 | CJ29: 0.08079999685 | CK29: 0.4580000043 | CL29: 0.9057999849 | CM29: 0.2614000142 | CN29: 0.7853000164 | CO29: 0.3790000081 | CP29: 0.2897000015 | CQ29: 0.9193999767 | CR29: 0.6317999959 | CS29: 0.6276999712 | CT29: 0.4284999967 | CU29: 0.09799999744 | CV29: 0.5611000061
T30: 0.6945000291 | U30: 0.9138000011 | V30: 0.8349000216 | W30: 0.02270000055 | X30: 0.5433999896 | Y30: 0.9161999822 | Z30: 0.4302999973 | AA30: 0.6779999733 | AB30: 0.5024999976 | AC30: 0.513800025 | AD30: 0.4629999995 | AE30: 0.3535000086 | AF30: 0.4049000144 | AG30: 0.2698000073 | AH30: 0.05559999868 | AI30: 0.243900001 | AJ30: 0.9790999889 | AK30: 0.06100000069 | AL30: 0.3903000057 | AM30: 0.3650000095 | AN30: 0.4898999929 | AO30: 0.1556999981 | AP30: 0.4745000005 | AQ30: 0.2572999895 | AR30: 0.6287999749 | AS30: 0.5421000123 | AT30: 0.1563999951 | AU30: 0.9386000037 | AV30: 0.6545000076 | AW30: 0.506099999 | AX30: 0.3905000091 | AY30: 0.1074000001 | AZ30: 0.7839999795 | BA30: 0.4596999884 | BB30: 0.7537000179 | BC30: 0.5960999727 | BD30: 0.8327999711 | BE30: 0.01879999973 | BF30: 0.2104000002 | BG30: 0.07400000095 | BH30: 0.1054999977 | BI30: 0.3316999972 | BJ30: 0.1282999963 | BK30: 0.0003000000142 | BL30: 0.5368000269 | BM30: 0.6571000218 | BN30: 0.5440999866 | BO30: 0.8274999857 | BP30: 0.08190000057 | BQ30: 0.1920000017 | BR30: 0.67900002 | BS30: 0.4542999864 | BT30: 0.3571000099 | BU30: 0.150000006 | BV30: 0.704400003 | BW30: 0.9287999868 | BX30: 0.5303000212 | BY30: 0.0896999985 | BZ30: 0.757799983 | CA30: 0.4018999934 | CB30: 0.4618999958 | CC30: 0.4921999872 | CD30: 0.2076999992 | CE30: 0.3298000097 | CF30: 0.09549999982 | CG30: 0.5898000002 | CH30: 0.1699000001 | CI30: 0.9276999831 | CJ30: 0.09799999744 | CK30: 0.4438999891 | CL30: 0.2730000019 | CM30: 0.872600019 | CN30: 0.7506999969 | CO30: 0.2730000019 | CP30: 0.673699975 | CQ30: 0.2567000091 | CR30: 0.08990000188 | CS30: 0.03099999949 | CT30: 0.3228000104 | CU30: 0.790199995 | CV30: 0.2973000109
G31: Standard- abweichung | H31: Streubreite | J31: Anteil an Gesamt- streubreite | K31: Anteill der Toleranz | T31: 0.2353000045 | U31: 0.4805000126 | V31: 0.2547000051 | W31: 0.3407000005 | X31: 0.04500000179 | Y31: 0.4824999869 | Z31: 0.2061000019 | AA31: 0.8646000028 | AB31: 0.5886999965 | AC31: 0.7549999952 | AD31: 0.9279000163 | AE31: 0.331099987 | AF31: 0.5429999828 | AG31: 0.08070000261 | AH31: 0.6344000101 | AI31: 0.410100013 | AJ31: 0.9605000019 | AK31: 0.114699997 | AL31: 0.9235000014 | AM31: 0.6202999949 | AN31: 0.3477999866 | AO31: 0.1492999941 | AP31: 0.4799999893 | AQ31: 0.2195000052 | AR31: 0.9937999845 | AS31: 0.1305000037 | AT31: 0.02889999934 | AU31: 0.3454000056 | AV31: 0.5476999879 | AW31: 0.9229999781 | AX31: 0.5382999778 | AY31: 0.4065000117 | AZ31: 0.847299993 | BA31: 0.826300025 | BB31: 0.6725000143 | BC31: 0.7218999863 | BD31: 0.9968000054 | BE31: 0.339899987 | BF31: 0.4952999949 | BG31: 0.4129999876 | BH31: 0.695299983 | BI31: 0.1791000068 | BJ31: 0.4230000079 | BK31: 0.543200016 | BL31: 0.8147000074 | BM31: 0.5410000086 | BN31: 0.4275999963 | BO31: 0.5091000199 | BP31: 0.2277999967 | BQ31: 0.6191999912 | BR31: 0.4898999929 | BS31: 0.6808999777 | BT31: 0.8866999745 | BU31: 0.3705999851 | BV31: 0.3025000095 | BW31: 0.292899996 | BX31: 0.1503999978 | BY31: 0.5299000144 | BZ31: 0.2232999951 | CA31: 0.5845999718 | CB31: 0.363499999 | CC31: 0.8759999871 | CD31: 0.4781000018 | CE31: 0.1906999946 | CF31: 0.6840999722 | CG31: 0.7475000024 | CH31: 0.6140000224 | CI31: 0.7821999788 | CJ31: 0.1617999971 | CK31: 0.8077999949 | CL31: 0.202700004 | CM31: 0.956799984 | CN31: 0.06589999795 | CO31: 0.06159999967 | CP31: 0.793200016 | CQ31: 0.3797000051 | CR31: 0.4636000097 | CS31: 0.119599998 | CT31: 0.1155000031 | CU31: 0.1738000065 | CV31: 0.04820000008
B32: Einflussgrößen | G32: SD | H32: SV | J32: %SV | K32: %T | P32: =AVERAGE(C19:E28) -> 0.3666666667 | Q32: =(P32-$P$35)^2 -> 0.05188271605 | T32: 0.7149000168 | U32: 0.533100009 | V32: 0.5611000061 | W32: 0.2168000042 | X32: 0.4681000113 | Y32: 0.7463999987 | Z32: 0.752399981 | AA32: 0.398999989 | AB32: 0.9031000137 | AC32: 0.7461000085 | AD32: 0.08860000223 | AE32: 0.6345999837 | AF32: 0.7131000161 | AG32: 0.01569999941 | AH32: 0.4311999977 | AI32: 0.40200001 | AJ32: 0.2752999961 | AK32: 0.9854000211 | AL32: 0.8026000261 | AM32: 0.6962000132 | AN32: 0.4176000059 | AO32: 0.7344999909 | AP32: 0.2772000134 | AQ32: 0.3565999866 | AR32: 0.4334999919 | AS32: 0.9449999928 | AT32: 0.1216000021 | AU32: 0.6460000277 | AV32: 0.3479000032 | AW32: 0.1045000032 | AX32: 0.1854999959 | AY32: 0.07769999653 | AZ32: 0.4327999949 | BA32: 0.9592999816 | BB32: 0.5421000123 | BC32: 0.4943999946 | BD32: 0.97299999 | BE32: 0.2178000063 | BF32: 0.3790000081 | BG32: 0.3959000111 | BH32: 0.2815999985 | BI32: 0.5034000278 | BJ32: 0.1387999952 | BK32: 0.5173000097 | BL32: 0.9653999805 | BM32: 0.5576000214 | BN32: 0.9093000293 | BO32: 0.6572999954 | BP32: 0.4411999881 | BQ32: 0.6930000186 | BR32: 0.0644999966 | BS32: 0.756099999 | BT32: 0.700600028 | BU32: 0.4970999956 | BV32: 0.1554999948 | BW32: 0.2238000035 | BX32: 0.3262000084 | BY32: 0.7845000029 | BZ32: 0.05029999837 | CA32: 0.5181000233 | CB32: 0.7570999861 | CC32: 0.8007000089 | CD32: 0.3253000081 | CE32: 0.9728000164 | CF32: 0.8043000102 | CG32: 0.6748999953 | CH32: 0.9052000046 | CI32: 0.8758000135 | CJ32: 0.4167000055 | CK32: 0.1230999976 | CL32: 0.9542000294 | CM32: 0.7972999811 | CN32: 0.6963000298 | CO32: 0.40169999 | CP32: 0.01630000025 | CQ32: 0.1677999943 | CR32: 0.1642999947 | CS32: 0.5098000169 | CT32: 0.4061000049 | CU32: 0.1062000021 | CV32: 0.2761999965
B33: Teile (Part Variation) Teilestreuung | F33: PV | G33: =IF($Z$41=0,AD48,AD39) -> 0.9734360676 | H33: =IF(G33="","",6*G33) -> 5.840616406 | I33: %PV | J33: =IF(H33="","",H33/$H$38) -> 0.9562180204 | K33: =IF(G33="","",6*G33/$H$9) -> 0.7300770507 | P33: =AVERAGE(F19:H28) -> 0.1666666667 | Q33: =(P33-$P$35)^2 -> 0.0007716049383 | T33: 0.6431000233 | U33: 0.8490999937 | V33: 0.4979999959 | W33: 0.1878000051 | X33: 0.8967000246 | Y33: 0.3729000092 | Z33: 0.3235999942 | AA33: 0.7709000111 | AB33: 0.2180999964 | AC33: 0.4469999969 | AD33: 0.2361000031 | AE33: 0.8784000278 | AF33: 0.6104999781 | AG33: 0.3745000064 | AH33: 0.3896000087 | AI33: 0.8605999947 | AJ33: 0.5860000253 | AK33: 0.9315999746 | AL33: 0.5171999931 | AM33: 0.3303999901 | AN33: 0.8684999943 | AO33: 0.2590999901 | AP33: 0.2596000135 | AQ33: 0.1787 | AR33: 0.3470000029 | AS33: 0.002600000007 | AT33: 0.7423999906 | AU33: 0.8409000039 | AV33: 0.2786000073 | AW33: 0.7030000091 | AX33: 0.4049000144 | AY33: 0.8116000295 | AZ33: 0.7418000102 | BA33: 0.4377000034 | BB33: 0.07800000161 | BC33: 0.4106999934 | BD33: 0.3393999934 | BE33: 0.7106000185 | BF33: 0.3122999966 | BG33: 0.7987999916 | BH33: 0.1518000066 | BI33: 0.5929999948 | BJ33: 0.9563000202 | BK33: 0.2432000041 | BL33: 0.9399999976 | BM33: 0.1143999994 | BN33: 0.9843000174 | BO33: 0.6330000162 | BP33: 0.5989000201 | BQ33: 0.9025999904 | BR33: 0.5748999715 | BS33: 0.2451999933 | BT33: 0.8601999879 | BU33: 0.07500000298 | BV33: 0.4388999939 | BW33: 0.7599999905 | BX33: 0.2457000017 | BY33: 0.3786999881 | BZ33: 0.397300005 | CA33: 0.5266000032 | CB33: 0.2703999877 | CC33: 0.5812000036 | CD33: 0.2097000033 | CE33: 0.07880000025 | CF33: 0.8955000043 | CG33: 0.1115000024 | CH33: 0.6524000168 | CI33: 0.9003999829 | CJ33: 0.2316000015 | CK33: 0.9499999881 | CL33: 0.8461999893 | CM33: 0.4413000047 | CN33: 0.4921000004 | CO33: 0.7695999742 | CP33: 0.8349000216 | CQ33: 0.3826000094 | CR33: 0.195600003 | CS33: 0.3262000084 | CT33: 0.4133000076 | CU33: 0.152700007 | CV33: 0.6198999882
B34: Prüfer (Appraiser Variation) Vergleichspräzision | F34: AV | G34: =IF($Z$41=0,AD49,AD40) -> 0.2350728807 | H34: =IF(G34="","",6*G34) -> 1.410437284 | I34: %AV | J34: =IF(H34="","",H34/$H$38) -> 0.2309149333 | K34: =IF(J34="","",6*G34/$H$9) -> 0.1763046606 | P34: =IF(I19="","",AVERAGE(I19:K28)) -> -0.1166666667 | Q34: =IF(P34="","",(P34-$P$35)^2) -> 0.06530864198 | T34: 0.09950000048 | U34: 0.2050999999 | V34: 0.6926000118 | W34: 0.5044999719 | X34: 0.1831 | Y34: 0.99150002 | Z34: 0.4713999927 | AA34: 0.00410000002 | AB34: 0.4259000123 | AC34: 0.2888000011 | AD34: 0.7526000142 | AE34: 0.8913000226 | AF34: 0.8220000267 | AG34: 0.1768999994 | AH34: 0.1088000014 | AI34: 0.0103000002 | AJ34: 0.1517000049 | AK34: 0.3774999976 | AL34: 0.1881999969 | AM34: 0.9796000123 | AN34: 0.8722000122 | AO34: 0.5816000104 | AP34: 0.7294999957 | AQ34: 0.1450999975 | AR34: 0.2578000128 | AS34: 0.02830000035 | AT34: 0.8278999925 | AU34: 0.7833999991 | AV34: 0.7911999822 | AW34: 0.3327000141 | AX34: 0.451000005 | AY34: 0.5551999807 | AZ34: 0.8033999801 | BA34: 0.5640000105 | BB34: 0.2036000043 | BC34: 0.2075999975 | BD34: 0.3646999896 | BE34: 0.5735999942 | BF34: 0.3441999853 | BG34: 0.5282999873 | BH34: 0.4255000055 | BI34: 0.5730999708 | BJ34: 0.05009999871 | BK34: 0.5475999713 | BL34: 0.2064999938 | BM34: 0.9627000093 | BN34: 0.9330999851 | BO34: 0.9926000237 | BP34: 0.8396000266 | BQ34: 0.4093999863 | BR34: 0.8052999973 | BS34: 0.9894999862 | BT34: 0.2585000098 | BU34: 0.1745000035 | BV34: 0.6947000027 | BW34: 0.01700000092 | BX34: 0.3391000032 | BY34: 0.6926000118 | BZ34: 0.1103999987 | CA34: 0.1098000035 | CB34: 0.2906000018 | CC34: 0.3989000022 | CD34: 0.5590999722 | CE34: 0.3109999895 | CF34: 0.295599997 | CG34: 0.8080000281 | CH34: 0.3097000122 | CI34: 0.3759000003 | CJ34: 0.4011000097 | CK34: 0.8414999843 | CL34: 0.4095999897 | CM34: 0.7246000171 | CN34: 0.6588000059 | CO34: 0.4063999951 | CP34: 0.9503999949 | CQ34: 0.6456000209 | CR34: 0.5160999894 | CS34: 0.2233999968 | CT34: 0.5827999711 | CU34: 0.7486000061 | CV34: 0.4564999938
B35: Wechselwirkung (Interaction) | F35: INT | G35: =IF($Z$41=0,0,AD41) -> 0 | H35: =IF(G35="","",6*G35) -> 0 | I35: %IA | J35: =IF(H35="","",H35/$H$38) -> 0 | K35: =IF(G35="","",6*G35/$H$9) -> 0 | P35: =AVERAGE(C19:K28) -> 0.1388888889 | T35: 0.904399991 | U35: 0.283100009 | V35: 0.6675999761 | W35: 0.8902000189 | X35: 0.2813999951 | Y35: 0.3680999875 | Z35: 0.01429999992 | AA35: 0.2946999967 | AB35: 0.9840999842 | AC35: 0.7613000274 | AD35: 0.5809000134 | AE35: 0.605700016 | AF35: 0.2680999935 | AG35: 0.5081999898 | AH35: 0.7936000228 | AI35: 0.8575000167 | AJ35: 0.09319999814 | AK35: 0.5418999791 | AL35: 0.4153999984 | AM35: 0.07339999825 | AN35: 0.4514000118 | AO35: 0.6988999844 | AP35: 0.4993000031 | AQ35: 0.4070000052 | AR35: 0.9451000094 | AS35: 0.9847000241 | AT35: 0.5914999843 | AU35: 0.5320000052 | AV35: 0.6151000261 | AW35: 0.08919999748 | AX35: 0.1844999939 | AY35: 0.2836000025 | AZ35: 0.01889999956 | BA35: 0.1526000053 | BB35: 0.4201999903 | BC35: 0.5485000014 | BD35: 0.5584999919 | BE35: 0.7810999751 | BF35: 0.04300000146 | BG35: 0.4058000147 | BH35: 0.05900000036 | BI35: 0.3118999898 | BJ35: 0.6031000018 | BK35: 0.5177000165 | BL35: 0.5964999795 | BM35: 0.3296999931 | BN35: 0.9093000293 | BO35: 0.7700999975 | BP35: 0.5759000182 | BQ35: 0.4316999912 | BR35: 0.7325999737 | BS35: 0.1630000025 | BT35: 0.05970000103 | BU35: 0.2433999926 | BV35: 0.7585999966 | BW35: 0.951300025 | BX35: 0.3454000056 | BY35: 0.6843000054 | BZ35: 0.7914999723 | CA35: 0.03550000116 | CB35: 0.7942000031 | CC35: 0.4835000038 | CD35: 0.2064999938 | CE35: 0.6021999717 | CF35: 0.9089000225 | CG35: 0.945299983 | CH35: 0.6534000039 | CI35: 0.01460000034 | CJ35: 0.6620000005 | CK35: 0.9648000002 | CL35: 0.009499999695 | CM35: 0.9535999894 | CN35: 0.07370000333 | CO35: 0.2933000028 | CP35: 0.5824999809 | CQ35: 0.8079000115 | CR35: 0.04039999843 | CS35: 0.05469999835 | CT35: 0.5644000173 | CU35: 0.3149000108 | CV35: 0.4124000072
B36: Messeinrichtung (Equipment Variation) Wiederholpräzision | F36: EV | G36: =IF($Z$41=0,AD51,AD42) -> 0.1830300522 | H36: =6*G36 -> 1.098180313 | I36: %EV | J36: =H36/$H$38 -> 0.1797926335 | K36: =6*G36/$H$9 -> 0.1372725391 | T36: 0.5101000071 | U36: 0.7336000204 | V36: 0.451000005 | W36: 0.3224000037 | X36: 0.07419999689 | Y36: 0.4088000059 | Z36: 0.5730000138 | AA36: 0.7634999752 | AB36: 0.5803999901 | AC36: 0.6518999934 | AD36: 0.8076999784 | AE36: 0.4169000089 | AF36: Boxplot | AJ36: 0.7308999896 | AK36: 0.1923999935 | AL36: 0.7736999989 | AM36: 0.06989999861 | AN36: 0.2480999976 | AO36: 0.9505000114 | AP36: 0.8198999763 | AQ36: 0.2195000052 | AR36: 0.1843000054 | AS36: 0.2370000035 | AT36: 0.9254999757 | AU36: 0.2576000094 | AV36: 0.2560000122 | AW36: 0.71450001 | AX36: 0.6649000049 | AY36: 0.7728999853 | AZ36: 0.7588999867 | BA36: 0.3084999919 | BB36: 0.8245999813 | BC36: 0.7188000083 | BD36: 0.8960000277 | BE36: 0.2225999981 | BF36: 0.356099993 | BG36: 0.5533999801 | BH36: 0.3555999994 | BI36: 0.204400003 | BJ36: 0.5789999962 | BK36: 0.6299999952 | BL36: 0.139500007 | BM36: 0.06100000069 | BN36: 0.6341999769 | BO36: 0.8385999799 | BP36: 0.6409999728 | BQ36: 0.4250000119 | BR36: 0.1871999949 | BS36: 0.4954999983 | BT36: 0.9732000232 | BU36: 0.7694000006 | BV36: 0.3806000054 | BW36: 0.4846999943 | BX36: 0.5471000075 | BY36: 0.6740000248 | BZ36: 0.03819999844 | CA36: 0.6478000283 | CB36: 0.8995000124 | CC36: 0.3404000103 | CD36: 0.1172999963 | CE36: 0.4255999923 | CF36: 0.771600008 | CG36: 0.3582000136 | CH36: 0.4120000005 | CI36: 0.747600019 | CJ36: 0.4365999997 | CK36: 0.719900012 | CL36: 0.5067999959 | CM36: 0.1736000031 | CN36: 0.2781000137 | CO36: 0.08730000257 | CP36: 0.9789999723 | CQ36: 0.2836000025 | CR36: 0.6182000041 | CS36: 0.3066999912 | CT36: 0.8524000049 | CU36: 0.3190000057 | CV36: 0.7954000235
B37: Prüfsystemstreuung | F37: GRR | G37: =IF($Z$41=0,AD52,AD43) -> 0.2979249222 | H37: =6*G37 -> 1.787549533 | I37: %GRR | J37: =H37/$H$38 -> 0.2926552537 | K37: =IF((6*G37/$H$9)>1,1,6*G37/$H$9) -> 0.2234436916 | T37: 0.1744000018 | U37: 0.3000999987 | V37: 0.07280000299 | W37: 0.4934000075 | X37: 0.4528999925 | Y37: 0.5978000164 | Z37: 0.03030000068 | AA37: 0.3183000088 | AB37: 0.1357000023 | AC37: 0.3269999921 | AD37: 0.7601000071 | AE37: 0.627300024 | AF37: 0.9636999965 | AG37: =$D$17 -> Gerber | AH37: =$G$17 -> Bohnert | AI37: =$J$17 -> Zimmer | AJ37: 0.8277000189 | AK37: 0.554099977 | AL37: 0.6068999767 | AM37: 0.1903000027 | AN37: 0.90200001 | AO37: 0.318599999 | AP37: 0.6004999876 | AQ37: 0.597299993 | AR37: 0.7670999765 | AS37: 0.7149999738 | AT37: 0.6872000098 | AU37: 0.7605000138 | AV37: 0.258100003 | AW37: 0.5497999787 | AX37: 0.5091999769 | AY37: 0.5652999878 | AZ37: 0.2816999853 | BA37: 0.415899992 | BB37: 0.3506000042 | BC37: 0.9720000029 | BD37: 0.5187000036 | BE37: 0.5828999877 | BF37: 0.4650999904 | BG37: 0.03209999949 | BH37: 0.3777999878 | BI37: 0.1377000064 | BJ37: 0.6542000175 | BK37: 0.1533000022 | BL37: 0.1981000006 | BM37: 0.3754000068 | BN37: 0.09560000151 | BO37: 0.6154000163 | BP37: 0.7024999857 | BQ37: 0.4395999908 | BR37: 0.4208999872 | BS37: 0.3361000121 | BT37: 0.7009000182 | BU37: 0.2131000012 | BV37: 0.04399999976 | BW37: 0.8860999942 | BX37: 0.04320000112 | BY37: 0.458799988 | BZ37: 0.7390000224 | CA37: 0.7552999854 | CB37: 0.8226000071 | CC37: 0.2097000033 | CD37: 0.4688000083 | CE37: 0.8680999875 | CF37: 0.8284000158 | CG37: 0.41049999 | CH37: 0.4625999928 | CI37: 0.3488999903 | CJ37: 0.2493000031 | CK37: 0.807099998 | CL37: 0.5443999767 | CM37: 0.5382999778 | CN37: 0.6266999841 | CO37: 0.08820000291 | CP37: 0.7110999823 | CQ37: 0.2579999864 | CR37: 0.05759999901 | CS37: 0.2752999961 | CT37: 0.9606999755 | CU37: 0.3269999921 | CV37: 0.6477000117
B38: Gesamtstreuung (Total Variation) | F38: TV | G38: =IF($Z$41=0,AD53,AD44) -> 1.018006403 | H38: =6*G38 -> 6.108038419 | I38: %TV | J38: =H38/$H$38 -> 1 | K38: =6*G38/$H$9 -> 0.7635048024 | T38: 0.363499999 | U38: 0.3700000048 | V38: 0.3269000053 | W38: 0.2148000002 | X38: 0.2124000043 | Y38: 0.4232000113 | Z38: 0.6175000072 | AA38: 0.2415000051 | AB38: 0.6862000227 | AC38: 0.5899999738 | AD38: 0.6029000282 | AE38: 0.07880000025 | AF38: Maximum | AG38: =MAX($C$19:$E$28) -> 1.34 | AH38: =MAX($F$19:$H$28) -> 1.34 | AI38: =IF($I$19="",NA(),MAX($I$19:$K$28)) -> 1.09 | AJ38: 0.04470000044 | AK38: 0.1533000022 | AL38: 0.246299997 | AM38: 0.3987999856 | AN38: 0.5839999914 | AO38: 0.2876999974 | AP38: 0.8363999724 | AQ38: 0.8981000185 | AR38: 0.5267000198 | AS38: 0.3876000047 | AT38: 0.0027999999 | AU38: 0.2509000003 | AV38: 0.1629000008 | AW38: 0.6452000141 | AX38: 0.9811999798 | AY38: 0.3120000064 | AZ38: 0.2407000065 | BA38: 0.8786000013 | BB38: 0.1297000051 | BC38: 0.5698000193 | BD38: 0.6069999933 | BE38: 0.6101999879 | BF38: 0.6938999891 | BG38: 0.8500999808 | BH38: 0.09759999812 | BI38: 0.3944999874 | BJ38: 0.8228999972 | BK38: 0.2682000101 | BL38: 0.6784999967 | BM38: 0.3962000012 | BN38: 0.8343999982 | BO38: 0.4329000115 | BP38: 0.8360000253 | BQ38: 0.2187999934 | BR38: 0.7311999798 | BS38: 0.8992000222 | BT38: 0.2177000046 | BU38: 0.9822000265 | BV38: 0.9657999873 | BW38: 0.8713999987 | BX38: 0.5228999853 | BY38: 0.6510000229 | BZ38: 0.4566999972 | CA38: 0.1565999985 | CB38: 0.6431000233 | CC38: 0.6126999855 | CD38: 0.8539999723 | CE38: 0.3673000038 | CF38: 0.05319999903 | CG38: 0.5059000254 | CH38: 0.05469999835 | CI38: 0.375 | CJ38: 0.4512999952 | CK38: 0.2980000079 | CL38: 0.9684000015 | CM38: 0.01290000044 | CN38: 0.6500999928 | CO38: 0.6140999794 | CP38: 0.5332999825 | CQ38: 0.02950000018 | CR38: 0.716899991 | CS38: 0.3140999973 | CT38: 0.9812999964 | CU38: 0.2910999954 | CV38: 0.3648999929
B39: Anzahl unterscheidbarer Klassen (min 5) | F39: ndc | G39: =IF(ROUNDDOWN(SQRT(2)*G33/G37,0)=0,1,ROUNDDOWN(SQRT(2)*G33/G37,0)) -> 4 | Q39: =sixmsa2_q35(calculation!AnzahlPruefer_k,calculation!AnzahlMessungen_r,S19:S28,V43) -> 17.1234 | S39: =AnzahlTeile_n-1 -> 2 | T39: 0.3217999935 | U39: =Q39/S39 -> 8.5617 | V39: 0.3540000021 | W39: =U39/U41 -> 661.1351351 | X39: 0.2356999964 | Y39: =FINV(0.05,S39,S41) -> 6.94427191 | Z39: =IF(W39>Y39,1,0) -> 1 | AA39: 0.5928999782 | AB39: 0.7023000121 | AC39: =(U39-U41)/(calculation!AnzahlPruefer*calculation!AnzahlMessungen_r) -> 0.9498611111 | AD39: =IF(AC39<0,0,SQRT(AC39)) -> 0.9746081834 | AE39: 0.2682000101 | AF39: Q3 | AG39: =QUARTILE($C$19:$E$28,3) -> 1.17 | AH39: =QUARTILE($F$19:$H$28,3) -> 0.94 | AI39: =IF($I$19="",NA(),QUARTILE($I$19:$K$28,3)) -> 0.67 | AJ39: 0.5753999949 | AK39: 0.5769000053 | AL39: 0.9908000231 | AM39: 0.931400001 | AN39: 0.25 | AO39: 0.810100019 | AP39: 0.7699000239 | AQ39: 0.4077000022 | AR39: 0.6299999952 | AS39: 0.4936999977 | AT39: 0.4986000061 | AU39: 0.1332000047 | AV39: 0.9695000052 | AW39: 0.177699998 | AX39: 0.5896000266 | AY39: 0.6815999746 | AZ39: 0.1096000001 | BA39: 0.6510000229 | BB39: 0.7382000089 | BC39: 0.780099988 | BD39: 0.4316000044 | BE39: 0.08280000091 | BF39: 0.4997999966 | BG39: 0.5746999979 | BH39: 0.05970000103 | BI39: 0.412499994 | BJ39: 0.1182999983 | BK39: 0.1460999995 | BL39: 0.3145999908 | BM39: 0.9908000231 | BN39: 0.6043999791 | BO39: 0.275000006 | BP39: 0.4163999856 | BQ39: 0.4700999856 | BR39: 0.06329999864 | BS39: 0.4582000077 | BT39: 0.4374000132 | BU39: 0.9451000094 | BV39: 0.2730999887 | BW39: 0.1736000031 | BX39: 0.506099999 | BY39: 0.3438000083 | BZ39: 0.5130000114 | CA39: 0.396600008 | CB39: 0.2594999969 | CC39: 0.06740000099 | CD39: 0.641200006 | CE39: 0.3648000062 | CF39: 0.5464000106 | CG39: 0.8816999793 | CH39: 0.4230999947 | CI39: 0.5945000052 | CJ39: 0.3808999956 | CK39: 0.05730000138 | CL39: 0.1094999984 | CM39: 0.1458999962 | CN39: 0.1449999958 | CO39: 0.7602000237 | CP39: 0.2646999955 | CQ39: 0.1386000067 | CR39: 0.04230000079 | CS39: 0.6926000118 | CT39: 0.8445000052 | CU39: 0.5174000263 | CV39: 0.8004999757
Q40: =sixmsa2_q40(V43,calculation!AnzahlTeile_n,calculation!AnzahlMessungen_r,$Q$32:$Q$34) -> 1.061666667 | S40: =AnzahlPruefer_k-1 -> 2 | T40: 0.9836000204 | U40: =Q40/S40 -> 0.5308333333 | V40: 0.524600029 | W40: =U40/U41 -> 40.99099099 | X40: 0.06809999794 | Y40: =FINV(0.05,S40,S41) -> 6.94427191 | Z40: =IF(W40>Y40,1,0) -> 1 | AA40: 0.6251000166 | AB40: 0.329400003 | AC40: =IF((U40-U41)/(calculation!AnzahlTeile*calculation!AnzahlMessungen_r)<0,0,(U40-U41)/(calculation!AnzahlTeile*calculation!AnzahlMessungen_r)) -> 0.05754259259 | AD40: =IF(AC40=0,"",SQRT(AC40)) -> 0.2398803714 | AE40: 0.2784999907 | AF40: Median | AG40: =QUARTILE($C$19:$E$28,2) -> 0.41 | AH40: =QUARTILE($F$19:$H$28,2) -> 0.08 | AI40: =IF($I$19="",NA(),QUARTILE($I$19:$K$28,2)) -> -0.11 | AJ40: 0.6829000115 | AK40: 0.4020999968 | AL40: 0.3844000101 | AM40: 0.205400005 | AN40: 0.8759999871 | AO40: 0.1512999982 | AP40: 0.40169999 | AQ40: 0.6090000272 | AR40: 0.5491999984 | AS40: 0.7294999957 | AT40: 0.1234000027 | AU40: 0.3249999881 | AV40: 0.007899999619 | AW40: 0.7835000157 | AX40: 0.9217000008 | AY40: 0.2994999886 | AZ40: 0.2260999978 | BA40: 0.9531999826 | BB40: 0.189199999 | BC40: 0.4171999991 | BD40: 0.3626999855 | BE40: 0.3248000145 | BF40: 0.9797000289 | BG40: 0.5791000128 | BH40: 0.5266000032 | BI40: 0.134100005 | BJ40: 0.8986999989 | BK40: 0.03119999915 | BL40: 0.7925999761 | BM40: 0.7192999721 | BN40: 0.2442000061 | BO40: 0.9423000216 | BP40: 0.466899991 | BQ40: 0.7240999937 | BR40: 0.3970000148 | BS40: 0.2319999933 | BT40: 0.602699995 | BU40: 0.5511999726 | BV40: 0.461800009 | BW40: 0.6492999792 | BX40: 0.7660999894 | BY40: 0.065200001 | BZ40: 0.1572999954 | CA40: 0.1001999974 | CB40: 0.0513000004 | CC40: 0.5457000136 | CD40: 0.9571999907 | CE40: 0.2261999995 | CF40: 0.3465999961 | CG40: 0.8905000091 | CH40: 0.4806999862 | CI40: 0.2319999933 | CJ40: 0.8497999907 | CK40: 0.06859999895 | CL40: 0.1332000047 | CM40: 0.9642999768 | CN40: 0.8339999914 | CO40: 0.8234999776 | CP40: 0.9966999888 | CQ40: 0.239199996 | CR40: 0.662800014 | CS40: 0.6262000203 | CT40: 0.9707999825 | CU40: 0.4208000004 | CV40: 0.05669999868
B41: Bemerkung | Q41: =sixmsa2_q41(V43,calculation!AnzahlMessungen_r,$T$19:$V$28) -> 0.0518 | S41: =S39*S40 -> 4 | T41: 0.8783000112 | U41: =Q41/S41 -> 0.01295 | V41: 0.1627999991 | W41: =U41/U42 -> 0.3401926445 | X41: 0.2492000014 | Y41: =FINV(0.05,S41,S42) -> 2.927744173 | Z41: =IF(W41>Y41,1,0) -> 0 | AA41: 0.6079999804 | AB41: 0.3653999865 | AC41: =IF((U41-U42)/AnzahlMessungen<0,0,(U41-U42)/AnzahlMessungen) -> 0 | AD41: =IF(AC41=0,"",SQRT(AC41)) ->  | AE41: 0.9183999896 | AF41: Q1 | AG41: =QUARTILE($C$19:$E$28,1) -> -0.56 | AH41: =QUARTILE($F$19:$H$28,1) -> -0.47 | AI41: =IF($I$19="",NA(),QUARTILE($I$19:$K$28,1)) -> -0.96 | AJ41: 0.5467000008 | AK41: 0.9596999884 | AL41: 0.7646999955 | AM41: 0.4050000012 | AN41: 0.756099999 | AO41: 0.5738000274 | AP41: 0.4451000094 | AQ41: 0.04560000077 | AR41: 0.03869999945 | AS41: 0.3632000089 | AT41: 0.4160000086 | AU41: 0.3655000031 | AV41: 0.631099999 | AW41: 0.1798000038 | AX41: 0.4343999922 | AY41: 0.1563999951 | AZ41: 0.970600009 | BA41: 0.2748000026 | BB41: 0.0588000007 | BC41: 0.804799974 | BD41: 0.7100999951 | BE41: 0.2520999908 | BF41: 0.7903000116 | BG41: 0.8701999784 | BH41: 0.983799994 | BI41: 0.2711000144 | BJ41: 0.4629999995 | BK41: 0.9129999876 | BL41: 0.9230999947 | BM41: 0.5001000166 | BN41: 0.8845000267 | BO41: 0.5724999905 | BP41: 0.4221999943 | BQ41: 0.8194000125 | BR41: 0.7268000245 | BS41: 0.8956000209 | BT41: 0.1536000073 | BU41: 0.7741000056 | BV41: 0.6667000055 | BW41: 0.9142000079 | BX41: 0.8335000277 | BY41: 0.7775999904 | BZ41: 0.7764000297 | CA41: 0.4738000035 | CB41: 0.7379000187 | CC41: 0.5647000074 | CD41: 0.1645999998 | CE41: 0.3115999997 | CF41: 0.467900008 | CG41: 0.894299984 | CH41: 0.8662999868 | CI41: 0.3844000101 | CJ41: 0.9654999971 | CK41: 0.5031999946 | CL41: 0.9842000008 | CM41: 0.4469000101 | CN41: 0.7792000175 | CO41: 0.3086000085 | CP41: 0.07890000194 | CQ41: 0.8798000216 | CR41: 0.5792999864 | CS41: 0.8616999984 | CT41: 0.8095999956 | CU41: 0.7678999901 | CV41: 0.9240000248
B42: =IF(K37<K13,"Das Messsystem ist fähig",IF(K37>K14,"Das Messsystem ist nicht fähig","Das Messsystem ist bedingt fähig")) -> Das Messsystem ist bedingt fähig | Q42: =sixmsa2_q42(V43,$W$19:$AE$28) -> 0.6852 | S42: =AnzahlTeile_n*AnzahlPruefer_k*(AnzahlMessungen_r-1) -> 18 | T42: 0.05029999837 | U42: =Q42/S42 -> 0.03806666667 | V42: 0.8248999715 | W42: =TODAY() -> 46119 | X42: 0.2282000035 | Y42: 0.2748999894 | Z42: 0.05270000175 | AA42: 0.9031000137 | AB42: 0.9879999757 | AC42: =U42 -> 0.03806666667 | AD42: =SQRT(AC42) -> 0.1951068084 | AE42: 0.2623000145 | AF42: Minimum | AG42: =MIN($C$19:$E$28) -> -0.68 | AH42: =MIN($F$19:$H$28) -> -1.22 | AI42: =IF($I$19="",NA(),MIN($I$19:$K$28)) -> -1.38 | AJ42: 0.5399000049 | AK42: 0.3431000113 | AL42: 0.2132000029 | AM42: 0.2012999952 | AN42: 0.1295000017 | AO42: 0.6049000025 | AP42: 0.5861999989 | AQ42: 0.8569999933 | AR42: 0.08829999715 | AS42: 0.2003999949 | AT42: 0.6341000199 | AU42: 0.4605000019 | AV42: 0.28580001 | AW42: 0.8335999846 | AX42: 0.3070000112 | AY42: 0.9743000269 | AZ42: 0.3971999884 | BA42: 0.7917000055 | BB42: 0.8058999777 | BC42: 0.6078000069 | BD42: 0.3562999964 | BE42: 0.5856000185 | BF42: 0.6607999802 | BG42: 0.5832999945 | BH42: 0.05889999866 | BI42: 0.8403000236 | BJ42: 0.05909999833 | BK42: 0.1513999999 | BL42: 0.3158999979 | BM42: 0.4356999993 | BN42: 0.4234000146 | BO42: 0.8565000296 | BP42: 0.05629999936 | BQ42: 0.897300005 | BR42: 0.2398999929 | BS42: 0.05270000175 | BT42: 0.7803999782 | BU42: 0.03680000082 | BV42: 0.1363999993 | BW42: 0.6692000031 | BX42: 0.2630000114 | BY42: 0.8422999978 | BZ42: 0.2101999968 | CA42: 0.2263000011 | CB42: 0.5062000155 | CC42: 0.6197000146 | CD42: 0.6068000197 | CE42: 0.1002999991 | CF42: 0.9430000186 | CG42: 0.3826999962 | CH42: 0.3474000096 | CI42: 0.03979999945 | CJ42: 0.8902000189 | CK42: 0.4936000109 | CL42: 0.407400012 | CM42: 0.9312999845 | CN42: 0.2513000071 | CO42: 0.554099977 | CP42: 0.04450000077 | CQ42: 0.8141999841 | CR42: 0.4699999988 | CS42: 0.5457000136 | CT42: 0.3767000139 | CU42: 0.1471000016 | CV42: 0.733099997
B43: =IF(G39<5,"(ndc) Der Messprozess ist nicht in der Lage genügend viele Teile unterscheidbar zu messen","(ndc) Der Messprozess ist in der Lage genügend viele Teile unterscheidbar zu messen") -> (ndc) Der Messprozess ist nicht in der Lage genügend viele Teile unterscheidbar zu messen | Q43: =sixmsa2_q42(V43,$AE$19:$AN$28) -> 19.01072222 | S43: =AnzahlMessungen*AnzahlPruefer*AnzahlTeile-1 -> 26 | T43: 0.2204000056 | U43: =Q43/S43 -> 0.7311816239 | V43: 1 | W43: 44116 | X43: 0.2102999985 | Y43: 0.3231999874 | Z43: 0.4237999916 | AA43: 0.7412999868 | AB43: 0.1185000017 | AC43: =AC42+AC41+AC40 -> 0.09560925926 | AD43: 0.3092074696 | AE43: 0.4357999861 | AF43: Maximum - Q3 | AG43: =AG38-AG39 -> 0.17 | AH43: =AH38-AH39 -> 0.4 | AI43: =AI38-AI39 -> 0.42 | AJ43: 0.8245999813 | AK43: 0.573300004 | AL43: 0.7689999938 | AM43: 0.2939999998 | AN43: 0.070600003 | AO43: 0.6237999797 | AP43: 0.5024999976 | AQ43: 0.6883999705 | AR43: 0.3524000049 | AS43: 0.6330999732 | AT43: 0.1606999934 | AU43: 0.9067000151 | AV43: 0.3697000146 | AW43: 0.8149999976 | AX43: 0.1641000062 | AY43: 0.4991999865 | AZ43: 0.03379999846 | BA43: 0.747699976 | BB43: 0.8407999873 | BC43: 0.2946000099 | BD43: 0.4212000072 | BE43: 0.5142999887 | BF43: 0.00400000019 | BG43: 0.6656000018 | BH43: 0.9765999913 | BI43: 0.09340000153 | BJ43: 0.7804999948 | BK43: 0.04419999942 | BL43: 0.9659000039 | BM43: 0.9998000264 | BN43: 0.6887000203 | BO43: 0.6879000068 | BP43: 0.1794999987 | BQ43: 0.1747999936 | BR43: 0.9667000175 | BS43: 0.6949999928 | BT43: 0.8852000237 | BU43: 0.1272999942 | BV43: 0.1504999995 | BW43: 0.2700000107 | BX43: 0.03159999847 | BY43: 0.3240999877 | BZ43: 0.9018999934 | CA43: 0.2396000028 | CB43: 0.7009000182 | CC43: 0.8309000134 | CD43: 0.0869999975 | CE43: 0.8184000254 | CF43: 0.8126000166 | CG43: 0.2021999955 | CH43: 0.1040000021 | CI43: 0.6240000129 | CJ43: 0.07580000162 | CK43: 0.6227999926 | CL43: 0.4616000056 | CM43: 0.9430999756 | CN43: 0.1930000037 | CO43: 0.2978000045 | CP43: 0.6068000197 | CQ43: 0.2469000071 | CR43: 0.3129999936 | CS43: 0.09350000322 | CT43: 0.003400000045 | CU43: 0.9569000006 | CV43: 0.733799994
B44: =IF(W40<Y40,"Der Einfluss durch den Prüfer ist nicht signifikant","Der Einfluss durch den Prüfer ist signifikant") -> Der Einfluss durch den Prüfer ist signifikant | T44: 0.4277999997 | U44: 0.4596000016 | V44: 0.4605000019 | W44: 0.8562999964 | X44: 0.4111999869 | Y44: 0.7069000006 | Z44: 0.3761999905 | AA44: 0.3867000043 | AB44: 0.2371000051 | AC44: =IF(AC39>0,AC43+AC39,AC43) -> 1.04547037 | AD44: 1.022482455 | AE44: 0.2274000049 | AF44: Q1-Minimum | AG44: =AG41-AG42 -> 0.12 | AH44: =AH41-AH42 -> 0.75 | AI44: =AI41-AI42 -> 0.42 | AJ44: 0.06989999861 | AK44: 0.7903000116 | AL44: 0.8227000237 | AM44: 0.3323999941 | AN44: 0.4199999869 | AO44: 0.9940000176 | AP44: 0.699000001 | AQ44: 0.4905999899 | AR44: 0.8334000111 | AS44: 0.3400000036 | AT44: 0.1525000036 | AU44: 0.9057999849 | AV44: 0.510800004 | AW44: 0.788500011 | AX44: 0.6147999763 | AY44: 0.3454999924 | AZ44: 0.9624999762 | BA44: 0.3711999953 | BB44: 0.3036000133 | BC44: 0.2186000049 | BD44: 0.773999989 | BE44: 0.8938999772 | BF44: 0.1137000024 | BG44: 0.9039000273 | BH44: 0.6216999888 | BI44: 0.8902000189 | BJ44: 0.7569000125 | BK44: 0.3280000091 | BL44: 0.5382999778 | BM44: 0.8241999745 | BN44: 0.1533000022 | BO44: 0.793299973 | BP44: 0.4287 | BQ44: 0.543900013 | BR44: 0.07150000334 | BS44: 0.05660000071 | BT44: 0.8353999853 | BU44: 0.9842000008 | BV44: 0.01930000074 | BW44: 0.6567000151 | BX44: 0.9542999864 | BY44: 0.120099999 | BZ44: 0.3846000135 | CA44: 0.4927999973 | CB44: 0.9000999928 | CC44: 0.1694999933 | CD44: 0.8255000114 | CE44: 0.6528000236 | CF44: 0.222299993 | CG44: 0.04679999873 | CH44: 0.9114999771 | CI44: 0.4907999933 | CJ44: 0.6704999804 | CK44: 0.06589999795 | CL44: 0.01370000001 | CM44: 0.9559000134 | CN44: 0.2099999934 | CO44: 0.8930000067 | CP44: 0.445600003 | CQ44: 0.1700000018 | CR44: 0.2876000106 | CS44: 0.7501999736 | CT44: 0.8539000154 | CU44: 0.2560000122 | CV44: 0.347299993
B45: =IF(W39<Y39,"Der Einfluss durch die einzelnen Teile ist nicht signifikant","Der Einfluss durch die einzelnen Teile ist signifikant") -> Der Einfluss durch die einzelnen Teile ist signifikant | T45: 0.8680999875 | U45: 0.8586999774 | V45: 0.4158000052 | W45: 0.5957000256 | X45: 0.1896000057 | Y45: 0.9442999959 | Z45: 0.2585999966 | AA45: 0.01769999973 | AB45: 0.3222000003 | AC45: 0.600300014 | AD45: 0.3790000081 | AE45: 0.6421999931 | AF45: 0.7419999838 | AG45: 0.7113000154 | AH45: 0.1849000007 | AI45: 0.05759999901 | AJ45: 0.2460999936 | AK45: 0.198300004 | AL45: 0.9761000276 | AM45: 0.1774999946 | AN45: 0.6560999751 | AO45: 0.9089999795 | AP45: 0.2718000114 | AQ45: 0.2565000057 | AR45: 0.7710999846 | AS45: 0.7585999966 | AT45: 0.389200002 | AU45: 0.1553000063 | AV45: 0.570900023 | AW45: 0.1202000007 | AX45: 0.271600008 | AY45: 0.8569999933 | AZ45: 0.6690999866 | BA45: 0.4654000103 | BB45: 0.5662000179 | BC45: 0.2322999984 | BD45: 0.01620000042 | BE45: 0.255400002 | BF45: 0.9524999857 | BG45: 0.05510000139 | BH45: 0.8528000116 | BI45: 0.08089999855 | BJ45: 0.7203999758 | BK45: 0.2682999969 | BL45: 0.9125000238 | BM45: 0.05330000073 | BN45: 0.5981000066 | BO45: 0.4995000064 | BP45: 0.8754000068 | BQ45: 0.4453000128 | BR45: 0.8306999803 | BS45: 0.826399982 | BT45: 0.07079999894 | BU45: 0.5809999704 | BV45: 0.507799983 | BW45: 0.7925000191 | BX45: 0.4307000041 | BY45: 0.9771000147 | BZ45: 0.141900003 | CA45: 0.6726999879 | CB45: 0.6927000284 | CC45: 0.7333999872 | CD45: 0.4964999855 | CE45: 0.9890000224 | CF45: 0.8532000184 | CG45: 0.172999993 | CH45: 0.6642000079 | CI45: 0.2763000131 | CJ45: 0.8705000281 | CK45: 0.7336000204 | CL45: 0.3946999907 | CM45: 0.09749999642 | CN45: 0.6179999709 | CO45: 0.1076000035 | CP45: 0.6733999848 | CQ45: 0.3097000122 | CR45: 0.08720000088 | CS45: 0.6328999996 | CT45: 0.548699975 | CU45: 0.579400003 | CV45: 0.8407999873
B46: =IF(W41<Y41,"Der Einfluss durch die Wechselwirkung Prüfer und Teil ist nicht signifikant","Der Einfluss durch die Wechselwirkung Prüfer und Teil ist signifikant") -> Der Einfluss durch die Wechselwirkung Prüfer und Teil ist nicht signifikant | T46: 0.9337000251 | U46: 0.2109999955 | V46: 0.1483999938 | W46: 0.7161999941 | X46: 0.8108000159 | Y46: 0.3203000128 | Z46: 0.8492000103 | AA46: 0.7779999971 | AB46: 0.3824000061 | AC46: 0.5842999816 | AD46: 0.3709000051 | AE46: 0.5217000246 | AF46: 0.4747000039 | AG46: 0.5868999958 | AH46: 0.774600029 | AI46: 0.3264999986 | AJ46: 0.2626999915 | AK46: 0.8658999801 | AL46: 0.2590000033 | AM46: 0.1586000025 | AN46: 0.1603000015 | AO46: 0.2415000051 | AP46: 0.1764000058 | AQ46: 0.523999989 | AR46: 0.9617000222 | AS46: 0.3941999972 | AT46: 0.2976000011 | AU46: 0.6722000241 | AV46: 0.2313999981 | AW46: 0.692900002 | AX46: 0.3285000026 | AY46: 0.04870000109 | AZ46: 0.9448999763 | BA46: 0.2732000053 | BB46: 0.6747000217 | BC46: 0.9984999895 | BD46: 0.3797999918 | BE46: 0.3653999865 | BF46: 0.4580000043 | BG46: 0.7192999721 | BH46: 0.2556999922 | BI46: 0.872600019 | BJ46: 0.7813000083 | BK46: 0.4643000066 | BL46: 0.1254999936 | BM46: 0.1988999993 | BN46: 0.2450000048 | BO46: 0.9955000281 | BP46: 0.01569999941 | BQ46: 0.3276000023 | BR46: 0.7117999792 | BS46: 0.2867999971 | BT46: 0.3167999983 | BU46: 0.1491000056 | BV46: 0.3228000104 | BW46: 0.4772000015 | BX46: 0.9244999886 | BY46: 0.03909999877 | BZ46: 0.7634000182 | CA46: 0.07389999926 | CB46: 0.6298000216 | CC46: 0.6869999766 | CD46: 0.7779999971 | CE46: 0.4052000046 | CF46: 0.7599999905 | CG46: 0.1736000031 | CH46: 0.9366000295 | CI46: 0.3240999877 | CJ46: 0.06909999996 | CK46: 0.2994999886 | CL46: 0.6499999762 | CM46: 0.1608999968 | CN46: 0.8783000112 | CO46: 0.1631000042 | CP46: 0.4352000058 | CQ46: 0.926699996 | CR46: 0.4670000076 | CS46: 0.9890000224 | CT46: 0.431400001 | CU46: 0.766200006 | CV46: 0.7131999731
T47: 0.2055999935 | U47: 0.1657000035 | V47: 0.6613000035 | W47: 0.9842000008 | X47: 0.7736999989 | Y47: 0.5681999922 | Z47: 0.3837000132 | AA47: 0.2772000134 | AB47: 0.7642999887 | AC47: 0.2381000072 | AD47: 0.6984000206 | AE47: 0.6096000075 | AF47: 0.1870999932 | AG47: Wert nach Teil Darstellung | AP47: 0.4564999938 | AQ47: 0.008999999613 | AR47: 0.5313000083 | AS47: 0.6121000051 | AT47: 0.8636000156 | AU47: 0.3149999976 | AV47: 0.280400008 | AW47: 0.6133000255 | AX47: 0.3652000129 | AY47: 0.5450000167 | AZ47: 0.6366000175 | BA47: 0.6560999751 | BB47: 0.1520999968 | BC47: 0.6883999705 | BD47: 0.9438999891 | BE47: 0.7714999914 | BF47: 0.9437000155 | BG47: 0.1499000043 | BH47: 0.300999999 | BI47: 0.7261000276 | BJ47: 0.2531000078 | BK47: 0.9521999955 | BL47: 0.9519000053 | BM47: 0.8496000171 | BN47: 0.9032999873 | BO47: 0.1894000024 | BP47: 0.9272000194 | BQ47: 0.1136000007 | BR47: 0.7922000289 | BS47: 0.7299000025 | BT47: 0.9337999821 | BU47: 0.4593000114 | BV47: 0.9086999893 | BW47: 0.1697999984 | BX47: 0.4961999953 | BY47: 0.3758000135 | BZ47: 0.59799999 | CA47: 0.03570000082 | CB47: 0.3468999863 | CC47: 0.7281000018 | CD47: 0.0775000006 | CE47: 0.2381000072 | CF47: 0.06710000336 | CG47: 0.8353000283 | CH47: 0.2021999955 | CI47: 0.7743999958 | CJ47: 0.9771000147 | CK47: 0.7990000248 | CL47: 0.4805000126 | CM47: 0.6819000244 | CN47: 0.2772000134 | CO47: 0.08070000261 | CP47: 0.3397000134 | CQ47: 0.2413000017 | CR47: 0.4379999936 | CS47: 0.3307000101 | CT47: 0.6417000294 | CU47: 0.4295000136 | CV47: 0.8417000175
T48: 0.4657999873 | U48: 0.4485000074 | V48: 0.622600019 | X48: 0.997600019 | Y48: 0.03799999878 | Z48: 0.5496000051 | AA48: 0.0540000014 | AB48: 0.6104000211 | AC48: =(U49-U52)/(calculation!AnzahlPruefer*calculation!AnzahlMessungen_r) -> 0.9475777778 | AD48: =IF(AC48<0,0,SQRT(AC48)) -> 0.9734360676 | AE48: 0.169599995 | AF48: 0.4948999882 | AG48: =$D$17 -> Gerber | AJ48: =$G$17 -> Bohnert | AM48: =$J$17 -> Zimmer | AP48: 0.847299993 | AQ48: 0.3253999949 | AR48: 0.8650000095 | AS48: 0.5121999979 | AT48: 0.2099999934 | AU48: 0.8859999776 | AV48: 0.4869999886 | AW48: 0.9843999743 | AX48: 0.02910000086 | AY48: 0.9721000195 | AZ48: 0.8492000103 | BA48: 0.2867000103 | BB48: 0.205400005 | BC48: 0.4431999922 | BD48: 0.685100019 | BE48: 0.2811999917 | BF48: 0.9653000236 | BG48: 0.1835000068 | BH48: 0.6549000144 | BI48: 0.04980000108 | BJ48: 0.8755000234 | BK48: 0.05460000038 | BL48: 0.4862000048 | BM48: 0.4722000062 | BN48: 0.1094999984 | BO48: 0.09880000353 | BP48: 0.3646000028 | BQ48: 0.0540000014 | BR48: 0.9628999829 | BS48: 0.992200017 | BT48: 0.5742999911 | BU48: 0.005100000184 | BV48: 0.6186000109 | BW48: 0.7477999926 | BX48: 0.3889000118 | BY48: 0.5674999952 | BZ48: 0.1633999944 | CA48: 0.6686000228 | CB48: 0.2117000073 | CC48: 0.5934000015 | CD48: 0.8524000049 | CE48: 0.5508000255 | CF48: 0.9667000175 | CG48: 0.3736999929 | CH48: 0.6258999705 | CI48: 0.1368999928 | CJ48: 0.7386999726 | CK48: 0.7159000039 | CL48: 0.8738999963 | CM48: 0.8188999891 | CN48: 0.6646999717 | CO48: 0.2721999884 | CP48: 0.4524999857 | CQ48: 0.5911999941 | CR48: 0.07379999757 | CS48: 0.1174999997 | CT48: 0.9491999745 | CU48: 0.2538000047 | CV48: 0.8781999946
Q49: =Q39 -> 17.1234 | S49: =AnzahlTeile_n-1 -> 2 | T49: 0.5777000189 | U49: =U39 -> 8.5617 | V49: 0.1984000057 | W49: =U49/U52 -> 255.5731343 | X49: 0.8657000065 | Y49: =FINV(0.05,S49,S52) -> 3.443356779 | Z49: =IF(W49>Y49,1,0) -> 1 | AA49: 0.2134999931 | AB49: 0.3082000017 | AC49: =IF((U50-U52)/(calculation!AnzahlTeile*calculation!AnzahlMessungen_r)<0,0,(U50-U52)/(calculation!AnzahlTeile*calculation!AnzahlMessungen_r)) -> 0.05525925926 | AD49: =IF(AC49=0,"",SQRT(AC49)) -> 0.2350728807 | AE49: 0.04740000144 | AF49: 1 | AG49: =IF(C19="",NA(),C19) -> 0.29 | AH49: =IF(D19="",NA(),D19) -> 0.41 | AI49: =IF(E19="",NA(),E19) -> 0.64 | AJ49: =IF(F19="",NA(),F19) -> 0.08 | AK49: =IF(G19="",NA(),G19) -> 0.25 | AL49: =IF(H19="",NA(),H19) -> 0.07 | AM49: =IF(I19="",NA(),I19) -> 0.04 | AN49: =IF(J19="",NA(),J19) -> -0.11 | AO49: =IF(K19="",NA(),K19) -> -0.15 | AP49: 0.4476999938 | AQ49: 0.3300000131 | AR49: 0.6209999919 | AS49: 0.3718000054 | AT49: 0.9356999993 | AU49: 0.7325999737 | AV49: 0.06400000304 | AW49: 0.3411000073 | AX49: 0.3835999966 | AY49: 0.5716999769 | AZ49: 0.2480999976 | BA49: 0.9343000054 | BB49: 0.4167999923 | BC49: 0.2838999927 | BD49: 0.9262999892 | BE49: 0.7056000233 | BF49: 0.9350000024 | BG49: 0.4824999869 | BH49: 0.3210000098 | BI49: 0.8003000021 | BJ49: 0.06539999694 | BK49: 0.09820000082 | BL49: 0.7024000287 | BM49: 0.2196999937 | BN49: 0.3659999967 | BO49: 0.7699000239 | BP49: 0.2169000059 | BQ49: 0.337500006 | BR49: 0.2784999907 | BS49: 0.4848000109 | BT49: 0.9649999738 | BU49: 0.6649000049 | BV49: 0.8314999938 | BW49: 0.4697000086 | BX49: 0.3291000128 | BY49: 0.8666999936 | BZ49: 0.5936999917 | CA49: 0.3309000134 | CB49: 0.5522999763 | CC49: 0.02630000003 | CD49: 0.8769000173 | CE49: 0.4454999864 | CF49: 0.5662000179 | CG49: 0.1618999988 | CH49: 0.1890999973 | CI49: 0.6017000079 | CJ49: 0.06859999895 | CK49: 0.9916999936 | CL49: 0.9380999804 | CM49: 0.8892999887 | CN49: 0.8524000049 | CO49: 0.9499999881 | CP49: 0.3837000132 | CQ49: 0.8406999707 | CR49: 0.3833000064 | CS49: 0.4523999989 | CT49: 0.8417999744 | CU49: 0.8210999966 | CV49: 0.6277999878
Q50: =Q40 -> 1.061666667 | S50: =AnzahlPruefer_k-1 -> 2 | T50: 0.4113999903 | U50: =U40 -> 0.5308333333 | V50: 0.1368999928 | W50: =U50/U52 -> 15.84577114 | X50: 0.6694999933 | Y50: =FINV(0.05,S50,S52) -> 3.443356779 | Z50: =IF(W50>Y50,1,0) -> 1 | AA50: 0.1317999959 | AB50: 0.002400000114 | AC50: 0.3054000139 | AD50: 0.5889999866 | AE50: 0.34799999 | AF50: 2 | AG50: -0.56 | AH50: -0.68 | AI50: -0.58 | AJ50: -0.47 | AK50: -1.22 | AL50: -0.68 | AM50: -1.38 | AN50: -1.13 | AO50: -0.96 | AP50: 0.6791999936 | AQ50: 0.5487999916 | AR50: 0.287800014 | AS50: 0.2148000002 | AT50: 0.4393000007 | AU50: 0.4366999865 | AV50: 0.3693999946 | AW50: 0.9840000272 | AX50: 0.339899987 | AY50: 0.3601000011 | AZ50: 0.9733999968 | BA50: 0.298999995 | BB50: 0.2633999884 | BC50: 0.2343000025 | BD50: 0.6664999723 | BE50: 0.5228000283 | BF50: 0.9330999851 | BG50: 0.4521999955 | BH50: 0.5824000239 | BI50: 0.3163999915 | BJ50: 0.1784999967 | BK50: 0.08739999682 | BL50: 0.8129000068 | BM50: 0.4666999876 | BN50: 0.4512999952 | BO50: 0.3470999897 | BP50: 0.04870000109 | BQ50: 0.9648000002 | BR50: 0.5910999775 | BS50: 0.2755999863 | BT50: 0.4693999887 | BU50: 0.3339000046 | BV50: 0.8404999971 | BW50: 0.7073000073 | BX50: 0.8845999837 | BY50: 0.2075999975 | BZ50: 0.1112999991 | CA50: 0.4695000052 | CB50: 0.124499999 | CC50: 0.1580000073 | CD50: 0.4995999932 | CE50: 0.8360999823 | CF50: 0.6804000139 | CG50: 0.7738000154 | CH50: 0.05189999938 | CI50: 0.2301000059 | CJ50: 0.5953000188 | CK50: 0.9883000255 | CL50: 0.7806000113 | CM50: 0.1773000062 | CN50: 0.6046000123 | CO50: 0.6579999924 | CP50: 0.9291999936 | CQ50: 0.5090000033 | CR50: 0.5267000198 | CS50: 0.3898999989 | CT50: 0.4885999858 | CU50: 0.8152999878 | CV50: 0.9036999941
K51: =0 -> 0 | T51: 0.6204000115 | U51: 0.9623000026 | V51: 0.1483999938 | W51: 0.891900003 | X51: 0.9430999756 | Y51: 0.3819999993 | Z51: 0.975399971 | AA51: 0.4025000036 | AB51: 0.6869999766 | AC51: =U52 -> 0.0335 | AD51: 0.1830300522 | AE51: 0.5735999942 | AF51: 3 | AG51: 1.34 | AH51: 1.17 | AI51: 1.27 | AJ51: 1.19 | AK51: 0.94 | AL51: 1.34 | AM51: 0.88 | AN51: 1.09 | AO51: 0.67 | AP51: 0.3815000057 | AQ51: 0.4921999872 | AR51: 0.7443000078 | AS51: 0.6722999811 | AT51: 0.5231999755 | AU51: 0.003800000064 | AV51: 0.6492000222 | AW51: 0.8885999918 | AX51: 0.3314999938 | AY51: 0.4569999874 | AZ51: 0.9053000212 | BA51: 0.5238000154 | BB51: 0.4650000036 | BC51: 0.1886000037 | BD51: 0.5641999841 | BE51: 0.2358999997 | BF51: 0.5127999783 | BG51: 0.7437000275 | BH51: 0.05350000039 | BI51: 0.5544999838 | BJ51: 0.4478999972 | BK51: 0.5159000158 | BL51: 0.2547000051 | BM51: 0.6471999884 | BN51: 0.3300999999 | BO51: 0.6380000114 | BP51: 0.8319000006 | BQ51: 0.3348999918 | BR51: 0.2594000101 | BS51: 0.1229000017 | BT51: 0.8091999888 | BU51: 0.3574000001 | BV51: 0.5788000226 | BW51: 0.2536999881 | BX51: 0.399300009 | BY51: 0.8891000152 | BZ51: 0.3276999891 | CA51: 0.224999994 | CB51: 0.08150000125 | CC51: 0.3045000136 | CD51: 0.9448999763 | CE51: 0.03269999847 | CF51: 0.9298999906 | CG51: 0.1941000074 | CH51: 0.2217999995 | CI51: 0.6155999899 | CJ51: 0.1914000064 | CK51: 0.6297000051 | CL51: 0.5052000284 | CM51: 0.2450000048 | CN51: 0.1137999967 | CO51: 0.6801000237 | CP51: 0.1509999931 | CQ51: 0.1662999988 | CR51: 0.02410000004 | CS51: 0.1771000028 | CT51: 0.2267999947 | CU51: 0.4887999892 | CV51: 0.6564000249
K52: =K51+K13 -> 0.1 | Q52: =Q42+Q41 -> 0.737 | S52: =S41+S42 -> 22 | T52: 0.7304000258 | U52: =Q52/S52 -> 0.0335 | V52: 0.4654999971 | W52: 0.3269000053 | X52: 0.7304000258 | Y52: 0.9940000176 | Z52: 0.4677999914 | AA52: 0.1903000027 | AB52: 0.7791000009 | AC52: =AC51+AC49 -> 0.08875925926 | AD52: 0.2979249222 | AE52: 0.181400001 | AF52: 4 | AP52: 0.1559000015 | AQ52: 0.6251000166 | AR52: 0.2268999964 | AS52: 0.831099987 | AT52: 0.4765999913 | AU52: 0.1039000005 | AV52: 0.7185000181 | AW52: 0.8227000237 | AX52: 0.3537999988 | AY52: 0.166899994 | AZ52: 0.6958000064 | BA52: 0.641900003 | BB52: 0.8923000097 | BC52: 0.8120999932 | BD52: 0.2270999998 | BE52: 0.8967999816 | BF52: 0.8309000134 | BG52: 0.1362999976 | BH52: 0.08470000327 | BI52: 0.08309999853 | BJ52: 0.2449000031 | BK52: 0.2256000042 | BL52: 0.07299999893 | BM52: 0.5997999907 | BN52: 0.4999000132 | BO52: 0.2957000136 | BP52: 0.6069999933 | BQ52: 0.01470000017 | BR52: 0.4546999931 | BS52: 0.08309999853 | BT52: 0.5399000049 | BU52: 0.5803999901 | BV52: 0.9140999913 | BW52: 0.4853000045 | BX52: 0.2417999953 | BY52: 0.9994999766 | BZ52: 0.3327000141 | CA52: 0.4515999854 | CB52: 0.9272000194 | CC52: 0.4406999946 | CD52: 0.7673000097 | CE52: 0.1235999987 | CF52: 0.2336000055 | CG52: 0.8037999868 | CH52: 0.08049999923 | CI52: 0.2260999978 | CJ52: 0.04960000142 | CK52: 0.2358999997 | CL52: 0.393900007 | CM52: 0.7071999907 | CN52: 0.5928000212 | CO52: 0.8967000246 | CP52: 0.7906000018 | CQ52: 0.6295999885 | CR52: 0.7379000187 | CS52: 0.9743000269 | CT52: 0.2689999938 | CU52: 0.3106999993 | CV52: 0.5952000022
K53: =K14-K13 -> 0.2 | Q53: =SUM(Q49:Q52) -> 18.92206667 | S53: =S43 -> 26 | T53: 0.950600028 | U53: 0.9456999898 | V53: 0.7135000229 | W53: 0.3382000029 | X53: 0.1172999963 | Y53: 0.508400023 | Z53: 0.08709999919 | AA53: 0.2822000086 | AB53: 0.3409999907 | AC53: =IF(AC48>0,AC52+AC48,AC52) -> 1.036337037 | AD53: 1.018006403 | AE53: 0.9194999933 | AF53: 5 | AP53: 0.8572000265 | AQ53: 0.2123000026 | AR53: 0.0794999972 | AS53: 0.3684999943 | AT53: 0.7671999931 | AU53: 0.9611999989 | AV53: 0.646600008 | AW53: 0.476000011 | AX53: 0.2682000101 | AY53: 0.2375999987 | AZ53: 0.7285000086 | BA53: 0.7461000085 | BB53: 0.1601999998 | BC53: 0.7046999931 | BD53: 0.1490000039 | BE53: 0.2700999975 | BF53: 0.4821000099 | BG53: 0.3073000014 | BH53: 0.8851000071 | BI53: 0.67900002 | BJ53: 0.6531999707 | BK53: 0.8511000276 | BL53: 0.3330999911 | BM53: 0.3470999897 | BN53: 0.8626999855 | BO53: 0.8299999833 | BP53: 0.8234000206 | BQ53: 0.8452000022 | BR53: 0.711499989 | BS53: 0.5045999885 | BT53: 0.3869000077 | BU53: 0.6431999803 | BV53: 0.1019999981 | BW53: 0.2301000059 | BX53: 0.7702000141 | BY53: 0.06369999796 | BZ53: 0.3788000047 | CA53: 0.03460000083 | CB53: 0.7014999986 | CC53: 0.4850000143 | CD53: 0.7197999954 | CE53: 0.4474000037 | CF53: 0.4059000015 | CG53: 0.7940000296 | CH53: 0.7764000297 | CI53: 0.5764999986 | CJ53: 0.3711999953 | CK53: 0.0896999985 | CL53: 0.5644000173 | CM53: 0.4375 | CN53: 0.3635999858 | CO53: 0.6359999776 | CP53: 0.6042000055 | CQ53: 0.5311999917 | CR53: 0.6933000088 | CS53: 0.065200001 | CT53: 0.3120000064 | CU53: 0.6717000008 | CV53: 0.7299000025
K54: =1-K14 -> 0.7 | T54: 0.8306999803 | U54: 0.6399999857 | V54: 0.06509999931 | W54: 0.668299973 | X54: 0.9101999998 | Y54: 0.9670000076 | Z54: 0.6367999911 | AA54: 0.5443000197 | AB54: 0.7591999769 | AC54: 0.2396000028 | AD54: 0.6103000045 | AE54: 0.4999000132 | AF54: 6 | AP54: 0.5137000084 | AQ54: 0.3619999886 | AR54: 0.3350999951 | AS54: 0.2994000018 | AT54: 0.443599999 | AU54: 0.8373000026 | AV54: 0.3646999896 | AW54: 0.09470000118 | AX54: 0.6556000113 | AY54: 0.6575999856 | AZ54: 0.784799993 | BA54: 0.4410000145 | BB54: 0.0465000011 | BC54: 0.4451999962 | BD54: 0.7915999889 | BE54: 0.5626000166 | BF54: 0.5062000155 | BG54: 0.8424999714 | BH54: 0.5195000172 | BI54: 0.8682000041 | BJ54: 0.3711000085 | BK54: 0.1536000073 | BL54: 0.1199000031 | BM54: 0.7166000009 | BN54: 0.1265999973 | BO54: 0.2337000072 | BP54: 0.08860000223 | BQ54: 0.4327999949 | BR54: 0.3612000048 | BS54: 0.6309999824 | BT54: 0.8443999887 | BU54: 0.5728999972 | BV54: 0.9685000181 | BW54: 0.9761999846 | BX54: 0.557099998 | BY54: 0.440200001 | BZ54: 0.6013000011 | CA54: 0.6240000129 | CB54: 0.2252999991 | CC54: 0.8506000042 | CD54: 0.3740999997 | CE54: 0.5430999994 | CF54: 0.005299999844 | CG54: 0.1484999955 | CH54: 0.8165000081 | CI54: 0.4571999907 | CJ54: 0.788500011 | CK54: 0.4722000062 | CL54: 0.07639999688 | CM54: 0.2355999947 | CN54: 0.02969999984 | CO54: 0.2693000138 | CP54: 0.3725999892 | CQ54: 0.5335999727 | CR54: 0.8253999949 | CS54: 0.06300000101 | CT54: 0.6988000274 | CU54: 0.6833000183 | CV54: 0.241899997
T55: 0.4670999944 | U55: 0.7759000063 | V55: 0.834100008 | W55: 0.8932999969 | X55: 0.4517999887 | Y55: 0.2556000054 | Z55: 0.3434999883 | AA55: 0.7695000172 | AB55: 0.8594999909 | AC55: 0.173299998 | AD55: 0.4176999927 | AE55: 0.3147000074 | AF55: 7 | AP55: 0.1703000069 | AQ55: 0.6514999866 | AR55: 0.002000000095 | AS55: 0.755400002 | AT55: 0.5174000263 | AU55: 0.8525000215 | AV55: 0.9217000008 | AW55: 0.6783000231 | AX55: 0.9532999992 | AY55: 0.1818999946 | AZ55: 0.2725000083 | BA55: 0.8583999872 | BB55: 0.9646999836 | BC55: 0.741599977 | BD55: 0.06140000001 | BE55: 0.3377999961 | BF55: 0.2388000041 | BG55: 0.03290000185 | BH55: 0.09700000286 | BI55: 0.7529000044 | BJ55: 0.6783999801 | BK55: 0.9096000195 | BL55: 0.1301999986 | BM55: 0.9129999876 | BN55: 0.6679000258 | BO55: 0.7810999751 | BP55: 0.2452999949 | BQ55: 0.6286000013 | BR55: 0.5886999965 | BS55: 0.06589999795 | BT55: 0.4997999966 | BU55: 0.7892000079 | BV55: 0.5849000216 | BW55: 0.8938999772 | BX55: 0.8156999946 | BY55: 0.6912999749 | BZ55: 0.5788999796 | CA55: 0.06049999967 | CB55: 0.1198000014 | CC55: 0.6171000004 | CD55: 0.5371000171 | CE55: 0.2291000038 | CF55: 0.7344999909 | CG55: 0.6621000171 | CH55: 0.9854999781 | CI55: 0.3842999935 | CJ55: 0.01810000092 | CK55: 0.8133000135 | CL55: 0.7750999928 | CM55: 0.5351999998 | CN55: 0.2560000122 | CO55: 0.277700007 | CP55: 0.09790000319 | CQ55: 0.6685000062 | CR55: 0.8007000089 | CS55: 0.05999999866 | CT55: 0.752399981 | CU55: 0.9514999986 | CV55: 0.4627000093
T56: 0.7907999754 | U56: 0.6589000225 | V56: 0.1852000058 | W56: 0.1515000015 | X56: 0.804799974 | Y56: 0.6258000135 | Z56: 0.507700026 | AA56: 0.7653999925 | AB56: 0.4691999853 | AC56: 0.3643000126 | AD56: 0.3468999863 | AE56: 0.3328999877 | AF56: 8 | AP56: 0.7613000274 | AQ56: 0.7551000118 | AR56: 0.6241999865 | AS56: 0.402700007 | AT56: 0.09679999948 | AU56: 0.3630000055 | AV56: 0.2069000006 | AW56: 0.685100019 | AX56: 0.4081999958 | AY56: 0.2032999992 | AZ56: 0.6119999886 | BA56: 0.9416000247 | BB56: 0.4727999866 | BC56: 0.7570000291 | BD56: 0.9589999914 | BE56: 0.1265999973 | BF56: 0.4903999865 | BG56: 0.236499995 | BH56: 0.1729000062 | BI56: 0.7771000266 | BJ56: 0.9121000171 | BK56: 0.1014999971 | BL56: 0.4375999868 | BM56: 0.6539999843 | BN56: 0.5180000067 | BO56: 0.8241000175 | BP56: 0.898999989 | BQ56: 0.6323000193 | BR56: 0.7454000115 | BS56: 0.9047999978 | BT56: 0.6179999709 | BU56: 0.8420000076 | BV56: 0.2669999897 | BW56: 0.1383000016 | BX56: 0.7734000087 | BY56: 0.05849999934 | BZ56: 0.8188999891 | CA56: 0.1283999979 | CB56: 0.115699999 | CC56: 0.3434999883 | CD56: 0.2788000107 | CE56: 0.05460000038 | CF56: 0.6694999933 | CG56: 0.935100019 | CH56: 0.9941999912 | CI56: 0.6868000031 | CJ56: 0.6872000098 | CK56: 0.3892999887 | CL56: 0.3605000079 | CM56: 0.6516000032 | CN56: 0.8514999747 | CO56: 0.9696000218 | CP56: 0.648999989 | CQ56: 0.9476000071 | CR56: 0.7293999791 | CS56: 0.2885999978 | CT56: 0.08500000089 | CU56: 0.7110999823 | CV56: 0.4742999971
T57: 0.1976999938 | U57: 0.1762000024 | V57: 0.2317000031 | W57: 0.7799000144 | X57: 0.9286000133 | Y57: 0.2904999852 | Z57: 0.2179999948 | AA57: 0.08309999853 | AB57: 0.483099997 | AC57: 0.4844999909 | AD57: 0.3129999936 | AE57: 0.01689999923 | AF57: 9 | AP57: 0.2745000124 | AQ57: 0.5812000036 | AR57: 0.8601999879 | AS57: 0.1140000001 | AT57: 0.01769999973 | AU57: 0.4982999861 | AV57: 0.9186000228 | AW57: 0.7594000101 | AX57: 0.8700000048 | AY57: 0.8266000152 | AZ57: 0.5288000107 | BA57: 0.3937000036 | BB57: 0.8216000199 | BC57: 0.6575000286 | BD57: 0.2284999937 | BE57: 0.9666000009 | BF57: 0.336499989 | BG57: 0.6618999839 | BH57: 0.8180999756 | BI57: 0.6395000219 | BJ57: 0.242899999 | BK57: 0.4176999927 | BL57: 0.3761999905 | BM57: 0.7389000058 | BN57: 0.8737999797 | BO57: 0.9882000089 | BP57: 0.5254999995 | BQ57: 0.9592999816 | BR57: 0.4578000009 | BS57: 0.7501000166 | BT57: 0.9480999708 | BU57: 0.8167999983 | BV57: 0.7595999837 | BW57: 0.4717999995 | BX57: 0.1513999999 | BY57: 0.3517000079 | BZ57: 0.9707000256 | CA57: 0.6413999796 | CB57: 0.4835999906 | CC57: 0.08179999888 | CD57: 0.8500000238 | CE57: 0.0447999984 | CF57: 0.3993999958 | CG57: 0.2056999952 | CH57: 0.1142000034 | CI57: 0.5940999985 | CJ57: 0.9754999876 | CK57: 0.05570000038 | CL57: 0.07900000364 | CM57: 0.4052000046 | CN57: 0.6764000058 | CO57: 0.8011999726 | CP57: 0.5490000248 | CQ57: 0.1263000071 | CR57: 0.369599998 | CS57: 0.4013000131 | CT57: 0.9588000178 | CU57: 0.5160999894 | CV57: 0.5920000076
T58: 0.8084999919 | U58: 0.7637000084 | V58: 0.2716999948 | W58: 0.06480000168 | X58: 0.4217000008 | Y58: 0.07989999652 | Z58: 0.1067000031 | AA58: 0.4595000148 | AB58: 0.7888000011 | AC58: 0.5752999783 | AD58: 0.07959999889 | AE58: 0.413199991 | AF58: 10 | AP58: 0.5606999993 | AQ58: 0.6104999781 | AR58: 0.1714999974 | AS58: 0.7947000265 | AT58: 0.6937000155 | AU58: 0.6287999749 | AV58: 0.1149000004 | AW58: 0.2198999971 | AX58: 0.9028999805 | AY58: 0.7972999811 | AZ58: 0.4708999991 | BA58: 0.8170999885 | BB58: 0.3653999865 | BC58: 0.897300005 | BD58: 0.9581999779 | BE58: 0.2432000041 | BF58: 0.6733000278 | BG58: 0.4650999904 | BH58: 0.03060000017 | BI58: 0.9488999844 | BJ58: 0.03689999878 | BK58: 0.1821999997 | BL58: 0.7056999803 | BM58: 0.6945000291 | BN58: 0.7376999855 | BO58: 0.5166000128 | BP58: 0.6423000097 | BQ58: 0.3156000078 | BR58: 0.831700027 | BS58: 0.6128000021 | BT58: 0.4691999853 | BU58: 0.738499999 | BV58: 0.1023999974 | BW58: 0.4327999949 | BX58: 0.3628999889 | BY58: 0.2459000051 | BZ58: 0.2639000118 | CA58: 0.1465000063 | CB58: 0.8761000037 | CC58: 0.9926999807 | CD58: 0.4142999947 | CE58: 0.7727000117 | CF58: 0.01539999992 | CG58: 0.7714999914 | CH58: 0.738499999 | CI58: 0.06920000166 | CJ58: 0.5695999861 | CK58: 0.02810000069 | CL58: 0.4611999989 | CM58: 0.673699975 | CN58: 0.6880000234 | CO58: 0.1272000074 | CP58: 0.05059999973 | CQ58: 0.4945000112 | CR58: 0.7082999945 | CS58: 0.8683999777 | CT58: 0.6711000204 | CU58: 0.351000011 | CV58: 0.2346999943
T59: 0.2511000037 | U59: 0.886500001 | V59: 0.8643000126 | W59: 0.4663999975 | X59: 0.4907999933 | Y59: 0.6129999757 | Z59: 0.59799999 | AA59: 0.7753000259 | AB59: 0.2842000127 | AC59: 0.3226999938 | AD59: 0.4487000108 | AE59: 0.5340999961 | AF59: 0.3253999949 | AG59: 0.4963999987 | AH59: 0.2865000069 | AI59: 0.1949000061 | AJ59: 0.07090000063 | AK59: 0.3265999854 | AL59: 0.8457999825 | AM59: 0.6168000102 | AN59: 0.7555999756 | AO59: 0.6711999774 | AP59: 0.8659999967 | AQ59: 0.6444000006 | AR59: 0.6583999991 | AS59: 0.2560000122 | AT59: 0.4817999899 | AU59: 0.9356999993 | AV59: 0.6176999807 | AW59: 0.1282999963 | AX59: 0.8643000126 | AY59: 0.04030000046 | AZ59: 0.7972000241 | BA59: 0.3594999909 | BB59: 0.1111999974 | BC59: 0.7275999784 | BD59: 0.701300025 | BE59: 0.9988999963 | BF59: 0.3876000047 | BG59: 0.564800024 | BH59: 0.4410000145 | BI59: 0.2763000131 | BJ59: 0.3165000081 | BK59: 0.7451000214 | BL59: 0.2492000014 | BM59: 0.05519999936 | BN59: 0.6197999716 | BO59: 0.1656000018 | BP59: 0.2465000004 | BQ59: 0.5360999703 | BR59: 0.00829999987 | BS59: 0.7559999824 | BT59: 0.4569999874 | BU59: 0.2096000016 | BV59: 0.3231000006 | BW59: 0.0560999997 | BX59: 0.07360000163 | BY59: 0.05930000171 | BZ59: 0.9254999757 | CA59: 0.04419999942 | CB59: 0.9736999869 | CC59: 0.01530000009 | CD59: 0.3379000127 | CE59: 0.2152999938 | CF59: 0.4851999879 | CG59: 0.6570000052 | CH59: 0.134800002 | CI59: 0.9089999795 | CJ59: 0.4013999999 | CK59: 0.1662999988 | CL59: 0.08269999921 | CM59: 0.8877999783 | CN59: 0.2474000007 | CO59: 0.5309000015 | CP59: 0.5313000083 | CQ59: 0.1652999967 | CR59: 0.7951999903 | CS59: 0.996999979 | CT59: 0.05389999971 | CU59: 0.08389999717 | CV59: 0.8295999765
T60: 0.7731000185 | U60: 0.3380999863 | V60: 0.643599987 | W60: 0.1634999961 | X60: 0.9825000167 | Y60: 0.3264000118 | Z60: 0.07940000296 | AA60: 0.9039999843 | AB60: 0.8668000102 | AC60: 0.6065999866 | AD60: 0.6901000142 | AE60: 0.9677000046 | AF60: R / x quer Karte Berechnung | AP60: 0.96450001 | AQ60: R | AR60: OEG | AS60: R Karte | AT60: 0.9004999995 | AU60: UEG | AV60: OEG | AW60: X quer Karte | AX60: 0.2346999943 | AY60: 0.4927000105 | AZ60: x quer quer | BA60: =AVERAGE(C19:K28) -> 0.1388888889 | BB60: 0.8741999865 | BC60: 0.4508999884 | BD60: 0.9948999882 | BE60: 0.2282000035 | BF60: 0.8701000214 | BG60: 0.1058999971 | BH60: 0.3513999879 | BI60: 0.4440999925 | BJ60: 0.6164000034 | BK60: 0.9356999993 | BL60: 0.9064000249 | BM60: 0.8963999748 | BN60: 0.1571000069 | BO60: 0.8705999851 | BP60: 0.6809999943 | BQ60: 0.08460000157 | BR60: 0.3066000044 | BS60: 0.5296000242 | BT60: 0.6308000088 | BU60: 0.7042999864 | BV60: 0.2906999886 | BW60: 0.2984000146 | BX60: 0.4115999937 | BY60: 0.3504000008 | BZ60: 0.6366999745 | CA60: 0.6571999788 | CB60: 0.3950000107 | CC60: 0.470600009 | CD60: 0.3143999875 | CE60: 0.7591000199 | CF60: 0.9341999888 | CG60: 0.5680999756 | CH60: 0.1265999973 | CI60: 0.2583000064 | CJ60: 0.8792999983 | CK60: 0.6549999714 | CL60: 0.3497000039 | CM60: 0.3880000114 | CN60: 0.3431999981 | CO60: 0.9550999999 | CP60: 0.6244999766 | CQ60: 0.288500011 | CR60: 0.7170000076 | CS60: 0.8574000001 | CT60: 0.09640000015 | CU60: 0.5857999921 | CV60: 0.9358000159
T61: 0.119099997 | U61: 0.8066999912 | V61: 0.2189999968 | W61: 0.9944000244 | X61: 0.318599999 | Y61: 0.3323999941 | Z61: 0.5191000104 | AA61: 0.7125999928 | AB61: 0.5587999821 | AC61: 0.6775000095 | AD61: 0.5365999937 | AE61: 0.7511000037 | AF61: 0.4199999869 | AG61: =$D$17 -> Gerber | AJ61: =$G$17 -> Bohnert | AM61: =$J$17 -> Zimmer | AP61: 0.4797999859 | AQ61: =BA61 -> 0.3333333333 | AR61: =AS61*BA61 -> 0.858 | AS61: =IF($I$19="",BC63,BC64) -> 2.574 | AT61: 0.1835000068 | AU61: =$BA$60-(BA61*AW61) -> -0.2021111111 | AV61: =$BA$60+(BA61*AW61) -> 0.4798888889 | AW61: =IF($I$19="",BA63,BA64) -> 1.023 | AX61: 0.7738000154 | AY61: 0.08630000055 | AZ61: R | BA61: =AVERAGE(AG63:AG72,AJ63:AJ72,AM63:AM72) -> 0.3333333333 | BB61: 0.3361999989 | BC61: 0.7124000192 | BD61: 0.1435000002 | BE61: 0.3583999872 | BF61: 0.6263999939 | BG61: 0.7717000246 | BH61: 0.4257000089 | BI61: 0.3813000023 | BJ61: 0.1995999962 | BK61: 0.3765000105 | BL61: 0.8880000114 | BM61: 0.4144999981 | BN61: 0.08959999681 | BO61: 0.9879000187 | BP61: 0.4593000114 | BQ61: 0.7340999842 | BR61: 0.280400008 | BS61: 0.2166000009 | BT61: 0.6200000048 | BU61: 0.9610999823 | BV61: 0.7217000127 | BW61: 0.7759000063 | BX61: 0.5430999994 | BY61: 0.6392999887 | BZ61: 0.5946999788 | CA61: 0.684499979 | CB61: 0.4844999909 | CC61: 0.06329999864 | CD61: 0.8277000189 | CE61: 0.7200999856 | CF61: 0.4237999916 | CG61: 0.3571000099 | CH61: 0.8615999818 | CI61: 0.122299999 | CJ61: 0.9546999931 | CK61: 0.8015999794 | CL61: 0.665899992 | CM61: 0.5457000136 | CN61: 0.425999999 | CO61: 0.4133999944 | CP61: 0.003700000001 | CQ61: 0.2630000114 | CR61: 0.3319000006 | CS61: 0.772300005 | CT61: 0.9477999806 | CU61: 0.6183999777 | CV61: 0.9526000023
T62: 0.09969999641 | U62: 0.6463000178 | V62: 0.7301999927 | W62: 0.2452999949 | X62: 0.5870000124 | Y62: 0.3379999995 | Z62: 0.4444999993 | AA62: 0.9844999909 | AB62: 0.9732000232 | AC62: 0.6180999875 | AD62: 0.537899971 | AE62: 0.152700007 | AF62: 0.3734000027 | AG62: Range | AH62: x quer | AI62: 0.9539999962 | AJ62: Range | AK62: x quer | AL62: 0.1710000038 | AM62: Range | AN62: s | AO62: 0.5807999969 | AP62: 0.3565999866 | AQ62: =AQ60 -> R | AR62: =AR60 -> OEG | AS62: max | AT62: 0.4508000016 | AU62: UEG | AV62: OEG | AW62: X quer Karte | AX62: max | AY62: min | AZ62: n | BA62: A2 | BB62: D3 | BC62: D4 | BD62: 0.5910999775 | BE62: 0.83950001 | BF62: 0.2743999958 | BG62: 0.8668000102 | BH62: 0.08550000191 | BI62: 0.3788000047 | BJ62: 0.8382999897 | BK62: 0.8792999983 | BL62: 0.1850000024 | BM62: 0.9194999933 | BN62: 0.9487000108 | BO62: 0.6001999974 | BP62: 0.1163000017 | BQ62: 0.09369999915 | BR62: 0.772300005 | BS62: 0.3416000009 | BT62: 0.5056999922 | BU62: 0.334800005 | BV62: 0.07069999725 | BW62: 0.6312999725 | BX62: 0.332100004 | BY62: 0.01899999939 | BZ62: 0.7781999707 | CA62: 0.478700012 | CB62: 0.1298999935 | CC62: 0.8551999927 | CD62: 0.8302000165 | CE62: 0.8902000189 | CF62: 0.4424999952 | CG62: 0.5261999965 | CH62: 0.2412 | CI62: 0.6349999905 | CJ62: 0.5249000192 | CK62: 0.5788999796 | CL62: 0.4329000115 | CM62: 0.2603999972 | CN62: 0.2975000143 | CO62: 0.5651999712 | CP62: 0.8123000264 | CQ62: 0.3576999903 | CR62: 0.548600018 | CS62: 0.4323000014 | CT62: 0.6000000238 | CU62: 0.07800000161 | CV62: 0.3878999949
T63: 0.1636999995 | U63: 0.9079999924 | V63: 0.8974000216 | W63: 0.9494000077 | X63: 0.6696000099 | Y63: 0.06819999963 | Z63: 0.6328999996 | AA63: 0.3449999988 | AB63: 0.9276000261 | AC63: 0.2102999985 | AD63: 0.7077000141 | AE63: 0.8666999936 | AF63: 1 | AG63: =IF(D19="","",MAX(C19:E19)-MIN(C19:E19)) -> 0.35 | AH63: =IF(D19="","",AVERAGE(C19:E19)) -> 0.4466666667 | AI63: 0.3734000027 | AJ63: =IF(G19="","",MAX(F19:H19)-MIN(F19:H19)) -> 0.18 | AK63: =IF(G19="","",AVERAGE(F19:H19)) -> 0.1333333333 | AL63: 0.09000000358 | AM63: =IF(J19="","",MAX(I19:K19)-MIN(I19:K19)) -> 0.19 | AN63: =IF(J19="","",AVERAGE(I19:K19)) -> -0.07333333333 | AO63: 0.6675000191 | AP63: 0.4406999946 | AQ63: =$AQ$61 -> 0.3333333333 | AR63: =$AR$61 -> 0.858 | AS63: =MAX(AG63:AG72,AJ63:AJ72,AM63:AM72,AR63:AR72) -> 0.858 | AT63: 0.5411999822 | AU63: =AU61 -> -0.2021111111 | AV63: =AV61 -> 0.4798888889 | AW63: =BA60 -> 0.1388888889 | AX63: =MAX(AH63:AH71,AK63:AK71,AN63:AN71) -> 1.26 | AY63: =MIN(AH63:AH72,AK63:AK72,AN63:AN72) -> -1.156666667 | AZ63: 2 | BA63: 1.88 | BB63: 0.1670999974 | BC63: 3.267 | BD63: 0.9453999996 | BE63: 0.3300999999 | BF63: 0.954400003 | BG63: 0.9334999919 | BH63: 0.8777999878 | BI63: 0.08780000359 | BJ63: 0.2664999962 | BK63: 0.4916000068 | BL63: 0.9702000022 | BM63: 0.7601000071 | BN63: 0.6513000131 | BO63: 0.3822999895 | BP63: 0.4126000106 | BQ63: 0.3393999934 | BR63: 0.4438999891 | BS63: 0.6629999876 | BT63: 0.8452000022 | BU63: 0.467599988 | BV63: 0.03099999949 | BW63: 0.2358999997 | BX63: 0.3740000129 | BY63: 0.3892999887 | BZ63: 0.9919000268 | CA63: 0.4259000123 | CB63: 0.8363999724 | CC63: 0.1544999927 | CD63: 0.4885999858 | CE63: 0.8090000153 | CF63: 0.3170999885 | CG63: 0.07209999859 | CH63: 0.9070000052 | CI63: 0.2903999984 | CJ63: 0.9132000208 | CK63: 0.4129000008 | CL63: 0.7470999956 | CM63: 0.4323000014 | CN63: 0.7502999902 | CO63: 0.3628000021 | CP63: 0.763899982 | CQ63: 0.03249999881 | CR63: 0.2478999943 | CS63: 0.2257000059 | CT63: 0.3578999937 | CU63: 0.9520999789 | CV63: 0.6349999905
T64: 0.8770999908 | U64: 0.2155999988 | V64: 0.1937000006 | W64: 0.7160000205 | X64: 0.4666000009 | Y64: 0.2002999932 | Z64: 0.2300000042 | AA64: 0.885800004 | AB64: 0.3713999987 | AC64: 0.4927999973 | AD64: 0.581099987 | AE64: 0.3959999979 | AF64: 2 | AG64: 0.12 | AH64: =IF(D20="","",AVERAGE(C20:E20)) -> -0.6066666667 | AI64: 0.3995999992 | AJ64: =IF(G20="","",MAX(F20:H20)-MIN(F20:H20)) -> 0.75 | AK64: =IF(G20="","",AVERAGE(F20:H20)) -> -0.79 | AL64: 0.9818999767 | AM64: =IF(J20="","",MAX(I20:K20)-MIN(I20:K20)) -> 0.42 | AN64: =IF(J20="","",AVERAGE(I20:K20)) -> -1.156666667 | AO64: 0.6434999704 | AP64: 0.8702999949 | AQ64: 0.3333333333 | AR64: 0.858 | AS64: =AS63 -> 0.858 | AT64: 0.2426999956 | AU64: =AU63 -> -0.2021111111 | AV64: =AV63 -> 0.4798888889 | AW64: =AW63 -> 0.1388888889 | AX64: =AX63 -> 1.26 | AY64: =AY63 -> -1.156666667 | AZ64: 3 | BA64: 1.023 | BB64: 0.9047999978 | BC64: 2.574 | BD64: 0.7674999833 | BE64: 0.06979999691 | BF64: 0.1794999987 | BG64: 0.7383000255 | BH64: 0.5857999921 | BI64: 0.9092000127 | BJ64: 0.02859999985 | BK64: 0.3388000131 | BL64: 0.5911999941 | BM64: 0.7221999764 | BN64: 0.3517999947 | BO64: 0.3332999945 | BP64: 0.9653999805 | BQ64: 0.7767000198 | BR64: 0.9071999788 | BS64: 0.7598999739 | BT64: 0.6563000083 | BU64: 0.0410999991 | BV64: 0.3524000049 | BW64: 0.9587000012 | BX64: 0.706700027 | BY64: 0.1995999962 | BZ64: 0.1975000054 | CA64: 0.7117999792 | CB64: 0.8323000073 | CC64: 0.9178000093 | CD64: 0.00810000021 | CE64: 0.6345999837 | CF64: 0.2496999949 | CG64: 0.3582000136 | CH64: 0.8589000106 | CI64: 0.8159999847 | CJ64: 0.7545999885 | CK64: 0.9463000298 | CL64: 0.03620000184 | CM64: 0.7092000246 | CN64: 0.05000000075 | CO64: 0.385800004 | CP64: 0.99150002 | CQ64: 0.2721999884 | CR64: 0.324000001 | CS64: 0.9241999984 | CT64: 0.5444999933 | CU64: 0.3587000072 | CV64: 0.07859999686
T65: 0.8687999845 | U65: 0.3359999955 | V65: 0.3583000004 | W65: 0.2070000023 | X65: 0.3519000113 | Y65: 0.5314999819 | Z65: 0.08749999851 | AA65: 0.3224000037 | AB65: 0.3467000127 | AC65: 0.7738000154 | AD65: 0.9301000237 | AE65: 0.3357999921 | AF65: 3 | AG65: 0.17 | AH65: 1.26 | AI65: 0.9329000115 | AJ65: =IF(G21="","",MAX(F21:H21)-MIN(F21:H21)) -> 0.4 | AK65: 1.156666667 | AL65: 0.386500001 | AM65: 0.42 | AN65: 0.88 | AO65: 0.2280000001 | AP65: 0.2838999927 | AQ65: 0.3333333333 | AR65: 0.858 | AS65: =AS64 -> 0.858 | AT65: 0.8122000098 | AU65: =AU64 -> -0.2021111111 | AV65: =AV64 -> 0.4798888889 | AW65: =AW64 -> 0.1388888889 | AX65: =AX64 -> 1.26 | AY65: =AY64 -> -1.156666667 | AZ65: 0.8269000053 | BA65: 0.9218000174 | BB65: 0.4079999924 | BC65: 0.07410000265 | BD65: 0.389200002 | BE65: 0.4411000013 | BF65: 0.4812000096 | BG65: 0.2111999989 | BH65: 0.1578000039 | BI65: 0.845600009 | BJ65: 0.3871000111 | BK65: 0.3853000104 | BL65: 0.2100999951 | BM65: 0.2153999954 | BN65: 0.9478999972 | BO65: 0.9424999952 | BP65: 0.06979999691 | BQ65: 0.2917999923 | BR65: 0.002099999925 | BS65: 0.1794999987 | BT65: 0.410100013 | BU65: 0.3677999973 | BV65: 0.7332999706 | BW65: 0.3583000004 | BX65: 0.006699999794 | BY65: 0.4289000034 | BZ65: 0.2476000041 | CA65: 0.9726999998 | CB65: 0.9409000278 | CC65: 0.5433999896 | CD65: 0.402399987 | CE65: 0.2635999918 | CF65: 0.05290000141 | CG65: 0.5034000278 | CH65: 0.8838999867 | CI65: 0.9843000174 | CJ65: 0.6448000073 | CK65: 0.715200007 | CL65: 0.5357000232 | CM65: 0.4167999923 | CN65: 0.4336999953 | CO65: 0.3400999904 | CP65: 0.9368000031 | CQ65: 0.6366000175 | CR65: 0.7548000216 | CS65: 0.6847000122 | CT65: 0.2294999957 | CU65: 0.02930000052 | CV65: 0.01470000017
T66: 0.8417999744 | U66: 0.1977999955 | V66: 0.05510000139 | W66: 0.3943000138 | X66: 0.5809999704 | Y66: 0.5954999924 | Z66: 0.2655999959 | AA66: 0.8022000194 | AB66: 0.4893999994 | AC66: 0.7242000103 | AD66: 0.5684000254 | AE66: 0.07760000229 | AF66: 4 | AI66: 0.3619000018 | AL66: 0.2612999976 | AO66: 0.7434999943 | AP66: 0.4433000088 | AQ66: 0.3333333333 | AR66: 0.858 | AS66: 0.858 | AT66: 0.8421000242 | AU66: -0.2021111111 | AV66: 0.4798888889 | AW66: 0.1388888889 | AX66: 1.26 | AY66: -1.156666667 | AZ66: 0.3384999931 | BA66: 0.2082999945 | BB66: 0.2092999965 | BC66: 0.3129000068 | BD66: 0.8697999716 | BE66: 0.03370000049 | BF66: 0.7254999876 | BG66: 0.03700000048 | BH66: 0.1292999983 | BI66: 0.2094999999 | BJ66: 0.5849999785 | BK66: 0.5476999879 | BL66: 0.5796999931 | BM66: 0.1601999998 | BN66: 0.07699999958 | BO66: 0.2894999981 | BP66: 0.9505000114 | BQ66: 0.5102000237 | BR66: 0.8906000257 | BS66: 0.508400023 | BT66: 0.565500021 | BU66: 0.0998999998 | BV66: 0.06679999828 | BW66: 0.3930000067 | BX66: 0.9217000008 | BY66: 0.2513000071 | BZ66: 0.2028000057 | CA66: 0.4648000002 | CB66: 0.516900003 | CC66: 0.2831999958 | CD66: 0.9042000175 | CE66: 0.2190999985 | CF66: 0.9282000065 | CG66: 0.2772000134 | CH66: 0.4889000058 | CI66: 0.01520000026 | CJ66: 0.1395999938 | CK66: 0.09329999983 | CL66: 0.9394000173 | CM66: 0.2175000012 | CN66: 0.1208999977 | CO66: 0.6352000237 | CP66: 0.1067999974 | CQ66: 0.5859000087 | CR66: 0.6547999978 | CS66: 0.3664999902 | CT66: 0.1631000042 | CU66: 0.9161000252 | CV66: 0.416200012
T67: 0.07580000162 | U67: 0.3050000072 | V67: 0.9311000109 | W67: 0.2992999852 | X67: 0.8924999833 | Y67: 0.7066000104 | Z67: 0.4208000004 | AA67: 0.9963999987 | AB67: 0.5526000261 | AC67: 0.7226999998 | AD67: 0.633400023 | AE67: 0.8255000114 | AF67: 5 | AI67: 0.9139999747 | AL67: 0.341899991 | AO67: 0.9157000184 | AP67: 0.8090999722 | AQ67: 0.3333333333 | AR67: 0.858 | AS67: 0.858 | AT67: 0.7224000096 | AU67: -0.2021111111 | AV67: 0.4798888889 | AW67: 0.1388888889 | AX67: 1.26 | AY67: -1.156666667 | AZ67: 0.8896999955 | BA67: 0.6036000252 | BB67: 0.00159999996 | BC67: 0.6266999841 | BD67: 0.9817000031 | BE67: 0.1630000025 | BF67: 0.06780000031 | BG67: 0.4449000061 | BH67: 0.7264999747 | BI67: 0.5802999735 | BJ67: 0.1110000014 | BK67: 0.6796000004 | BL67: 0.1791000068 | BM67: 0.003000000026 | BN67: 0.7513999939 | BO67: 0.2833000124 | BP67: 0.04390000179 | BQ67: 0.630400002 | BR67: 0.4532999992 | BS67: 0.6746000051 | BT67: 0.6279000044 | BU67: 0.8542000055 | BV67: 0.1045000032 | BW67: 0.003599999938 | BX67: 0.04369999841 | BY67: 0.648999989 | BZ67: 0.8434000015 | CA67: 0.6671000123 | CB67: 0.6626999974 | CC67: 0.2131000012 | CD67: 0.137500003 | CE67: 0.07500000298 | CF67: 0.8181999922 | CG67: 0.8592000008 | CH67: 0.1116999984 | CI67: 0.6653000116 | CJ67: 0.7585999966 | CK67: 0.1545999944 | CL67: 0.1262000054 | CM67: 0.1699000001 | CN67: 0.850300014 | CO67: 0.3122000098 | CP67: 0.6046000123 | CQ67: 0.1305000037 | CR67: 0.03119999915 | CS67: 0.8313000202 | CT67: 0.1120999977 | CU67: 0.6639000177 | CV67: 0.5134999752
T68: 0.3876000047 | U68: 0.6837999821 | V68: 0.4774999917 | W68: 0.7369999886 | X68: 0.9743000269 | Y68: 0.402399987 | Z68: 0.1353999972 | AA68: 0.5720000267 | AB68: 0.2926999927 | AC68: 0.226699993 | AD68: 0.5738000274 | AE68: 0.7728000283 | AF68: 6 | AG68: =IF(D24="","",MAX(C24:E24)-MIN(C24:E24)) ->  | AI68: 0.3925999999 | AL68: 0.06970000267 | AO68: 0.8662999868 | AP68: 0.6804999709 | AQ68: 0.3333333333 | AR68: 0.858 | AS68: 0.858 | AT68: 0.5631999969 | AU68: -0.2021111111 | AV68: 0.4798888889 | AW68: 0.1388888889 | AX68: 1.26 | AY68: -1.156666667 | AZ68: 0.1264999956 | BA68: 0.240199998 | BB68: 0.1763000041 | BC68: 0.4735000134 | BD68: 0.4524999857 | BE68: 0.3413999975 | BF68: 0.8845999837 | BG68: 0.5630000234 | BH68: 0.7918000221 | BI68: 0.7506999969 | BJ68: 0.6258000135 | BK68: 0.6822999716 | BL68: 0.6547999978 | BM68: 0.7487999797 | BN68: 0.120099999 | BO68: 0.9839000106 | BP68: 0.6468999982 | BQ68: 0.3323000073 | BR68: 0.9399999976 | BS68: 0.06239999831 | BT68: 0.04619999975 | BU68: 0.4794000089 | BV68: 0.7138000131 | BW68: 0.3458000124 | BX68: 0.6317999959 | BY68: 0.665199995 | BZ68: 0.5784999728 | CA68: 0.7354999781 | CB68: 0.7619000077 | CC68: 0.6276000142 | CD68: 0.8828999996 | CE68: 0.4970999956 | CF68: 0.7020000219 | CG68: 0.3828000128 | CH68: 0.141200006 | CI68: 0.4011000097 | CJ68: 0.2029000074 | CK68: 0.4907000065 | CL68: 0.235499993 | CM68: 0.1137999967 | CN68: 0.3287999928 | CO68: 0.5713000298 | CP68: 0.8690999746 | CQ68: 0.8373000026 | CR68: 0.5356000066 | CS68: 0.06930000335 | CT68: 0.2698999941 | CU68: 0.2004999965 | CV68: 0.9988999963
T69: 0.2703999877 | U69: 0.1432999969 | V69: 0.3998000026 | W69: 0.1922000051 | X69: 0.5667999983 | Y69: 0.8754000068 | Z69: 0.5896000266 | AA69: 0.7148000002 | AB69: 0.9728000164 | AC69: 0.9858999848 | AD69: 0.5228999853 | AE69: 0.3704000115 | AF69: 7 | AI69: 0.8902000189 | AL69: 0.831700027 | AO69: 0.4419000149 | AP69: 0.494599998 | AQ69: 0.3333333333 | AR69: 0.858 | AS69: 0.858 | AT69: 0.1242000014 | AU69: -0.2021111111 | AV69: 0.4798888889 | AW69: 0.1388888889 | AX69: 1.26 | AY69: -1.156666667 | AZ69: 0.559499979 | BA69: 0.2187000066 | BB69: 0.5335999727 | BC69: 0.1491000056 | BD69: 0.3093000054 | BE69: 0.7458999753 | BF69: 0.871900022 | BG69: 0.6236000061 | BH69: 0.6672999859 | BI69: 0.5774999857 | BJ69: 0.9107999802 | BK69: 0.1565999985 | BL69: 0.3691000044 | BM69: 0.8187999725 | BN69: 0.3961000144 | BO69: 0.3230000138 | BP69: 0.2531000078 | BQ69: 0.2678000033 | BR69: 0.9965999722 | BS69: 0.9289000034 | BT69: 0.4629000127 | BU69: 0.8054000139 | BV69: 0.132100001 | BW69: 0.5275999904 | BX69: 0.9014000297 | BY69: 0.03610000014 | BZ69: 0.0513000004 | CA69: 0.1852000058 | CB69: 0.9330000281 | CC69: 0.1789000034 | CD69: 0.1604000032 | CE69: 0.4957999885 | CF69: 0.3373999894 | CG69: 0.2073000073 | CH69: 0.6007999778 | CI69: 0.8476999998 | CJ69: 0.5121999979 | CK69: 0.2406000048 | CL69: 0.0773999989 | CM69: 0.9387999773 | CN69: 0.9265999794 | CO69: 0.1841000021 | CP69: 0.9366000295 | CQ69: 0.5421000123 | CR69: 0.8241000175 | CS69: 0.6198999882 | CT69: 0.4947000146 | CU69: 0.5213999748 | CV69: 0.1756000072
T70: 0.9473999739 | U70: 0.6157000065 | V70: 0.09690000117 | W70: 0.882799983 | X70: 0.7742999792 | Y70: 0.5397999883 | Z70: 0.3610999882 | AA70: 0.2311999947 | AB70: 0.5565000176 | AC70: 0.9610000253 | AD70: 0.04390000179 | AE70: 0.5932000279 | AF70: 8 | AI70: 0.4893999994 | AL70: 0.3558000028 | AO70: 0.5286999941 | AP70: 0.381099999 | AQ70: 0.3333333333 | AR70: 0.858 | AS70: 0.858 | AT70: 0.6482999921 | AU70: -0.2021111111 | AV70: 0.4798888889 | AW70: 0.1388888889 | AX70: 1.26 | AY70: -1.156666667 | AZ70: 0.5608999729 | BA70: 0.117899999 | BB70: 0.2506000102 | BC70: 0.3790999949 | BD70: 0.6014000177 | BE70: 0.5482000113 | BF70: 0.5533999801 | BG70: 0.9383999705 | BH70: 0.769299984 | BI70: 0.7569000125 | BJ70: 0.04100000113 | BK70: 0.3851000071 | BL70: 0.9509000182 | BM70: 0.8967000246 | BN70: 0.8170999885 | BO70: 0.7202000022 | BP70: 0.2057999969 | BQ70: 0.6019999981 | BR70: 0.5411999822 | BS70: 0.2775999904 | BT70: 0.5942999721 | BU70: 0.5042999983 | BV70: 0.8816000223 | BW70: 0.3650999963 | BX70: 0.2558000088 | BY70: 0.997600019 | BZ70: 0.2184000015 | CA70: 0.1546999961 | CB70: 0.7369999886 | CC70: 0.2542999983 | CD70: 0.5970000029 | CE70: 0.8230000138 | CF70: 0.5699999928 | CG70: 0.4907999933 | CH70: 0.9305999875 | CI70: 0.9426000118 | CJ70: 0.1004000008 | CK70: 0.483099997 | CL70: 0.4539000094 | CM70: 0.1216999963 | CN70: 0.5651000142 | CO70: 0.3323000073 | CP70: 0.4262000024 | CQ70: 0.8956999779 | CR70: 0.4210999906 | CS70: 0.4803000093 | CT70: 0.08389999717 | CU70: 0.8671000004 | CV70: 0.9230999947
T71: 0.9756000042 | U71: 0.8443999887 | V71: 0.09660000354 | W71: 0.9516999722 | X71: 0.9886000156 | Y71: 0.7588000298 | Z71: 0.7433999777 | AA71: 0.09179999679 | AB71: 0.5774999857 | AC71: 0.2150000036 | AD71: 0.9559000134 | AE71: 0.9602000117 | AF71: 9 | AI71: 0.703700006 | AL71: 0.891200006 | AO71: 0.01260000002 | AP71: 0.7845000029 | AQ71: 0.3333333333 | AR71: 0.858 | AS71: 0.858 | AT71: 0.4977999926 | AU71: -0.2021111111 | AV71: 0.4798888889 | AW71: 0.1388888889 | AX71: 1.26 | AY71: -1.156666667 | AZ71: 0.9585000277 | BA71: 0.7124000192 | BB71: 0.230399996 | BC71: 0.774699986 | BD71: 0.5343999863 | BE71: 0.01520000026 | BF71: 0.4803000093 | BG71: 0.7994999886 | BH71: 0.385800004 | BI71: 0.9329000115 | BJ71: 0.5615000129 | BK71: 0.3034000099 | BL71: 0.8820999861 | BM71: 0.6696000099 | BN71: 0.9237999916 | BO71: 0.7487999797 | BP71: 0.1985999942 | BQ71: 0.01250000019 | BR71: 0.2684000134 | BS71: 0.8452000022 | BT71: 0.7689999938 | BU71: 0.9724000096 | BV71: 0.6252999902 | BW71: 0.3149000108 | BX71: 0.989199996 | BY71: 0.674399972 | BZ71: 0.6818000078 | CA71: 0.9082999825 | CB71: 0.1700000018 | CC71: 0.4982999861 | CD71: 0.3605999947 | CE71: 0.6700999737 | CF71: 0.7404999733 | CG71: 0.4697000086 | CH71: 0.6478000283 | CI71: 0.4541000128 | CJ71: 0.7009999752 | CK71: 0.9002000093 | CL71: 0.6711999774 | CM71: 0.689899981 | CN71: 0.3260999918 | CO71: 0.2779999971 | CP71: 0.02820000052 | CQ71: 0.397300005 | CR71: 0.1181000024 | CS71: 0.4088999927 | CT71: 0.364199996 | CU71: 0.4528999925 | CV71: 0.01009999961
T72: 0.8065999746 | U72: 0.2004999965 | V72: 0.1054000035 | W72: 0.8184999824 | X72: 0.3336000144 | Y72: 0.01250000019 | Z72: 0.7409999967 | AA72: 0.9472000003 | AB72: 0.09130000323 | AC72: 0.5577999949 | AD72: 0.8992999792 | AE72: 0.3397000134 | AF72: 10 | AI72: 0.5613999963 | AL72: 0.454400003 | AO72: 0.5388000011 | AP72: 0.6830000281 | AQ72: 0.3333333333 | AR72: 0.858 | AS72: 0.858 | AT72: 0.9958999753 | AU72: -0.2021111111 | AV72: 0.4798888889 | AW72: 0.1388888889 | AX72: 1.26 | AY72: -1.156666667 | AZ72: 0.008799999952 | BA72: 0.5527999997 | BB72: 0.8600000143 | BC72: 0.05779999867 | BD72: 0.293900013 | BE72: 0.5346000195 | BF72: 0.6534000039 | BG72: 0.712100029 | BH72: 0.4776000082 | BI72: 0.7930999994 | BJ72: 0.6980999708 | BK72: 0.3662 | BL72: 0.4005999863 | BM72: 0.6191999912 | BN72: 0.685100019 | BO72: 0.2601000071 | BP72: 0.404399991 | BQ72: 0.8004000187 | BR72: 0.8136000037 | BS72: 0.1080000028 | BT72: 0.409799993 | BU72: 0.3869999945 | BV72: 0.4952999949 | BW72: 0.9879999757 | BX72: 0.2446999997 | BY72: 0.7077999711 | BZ72: 0.3066000044 | CA72: 0.4832000136 | CB72: 0.2223999947 | CC72: 0.6353999972 | CD72: 0.1921000034 | CE72: 0.07209999859 | CF72: 0.9696000218 | CG72: 0.1019999981 | CH72: 0.9176999927 | CI72: 0.7694000006 | CJ72: 0.5048000216 | CK72: 0.8647999763 | CL72: 0.7738999724 | CM72: 0.01669999957 | CN72: 0.5659999847 | CO72: 0.522300005 | CP72: 0.5284000039 | CQ72: 0.8227000237 | CR72: 0.189199999 | CS72: 0.7789000273 | CT72: 0.6298000216 | CU72: 0.1543000042 | CV72: 0.5363000035
T73: 0.9613999724 | U73: 0.66049999 | V73: 0.5770999789 | W73: 0.9732999802 | X73: 0.7843000293 | Y73: 0.03979999945 | Z73: 0.1456999928 | AA73: 0.3986000121 | AB73: 0.3652999997 | AC73: 0.9768000245 | AD73: 0.5447999835 | AE73: 0.8205999732 | AF73: 0.4909999967 | AG73: 0.6740999818 | AH73: 0.4796000123 | AI73: 0.186499998 | AJ73: 0.1327999979 | AK73: 0.7803999782 | AL73: 0.3161999881 | AM73: 0.4600000083 | AN73: 0.2119999975 | AO73: 0.09380000085 | AP73: 0.9728000164 | AQ73: 0.9495000243 | AR73: 0.6158999801 | AS73: 0.5151000023 | AT73: 0.059799999 | AU73: 0.8862000108 | AV73: 0.4632000029 | AW73: 0.2506000102 | AX73: 0.2705000043 | AY73: 0.2524000108 | AZ73: 0.6197999716 | BA73: 0.2655000091 | BB73: 0.02199999988 | BC73: 0.8593999743 | BD73: 0.4641000032 | BE73: 0.986800015 | BF73: 0.345600009 | BG73: 0.6758000255 | BH73: 0.9028999805 | BI73: 0.2565999925 | BJ73: 0.02759999968 | BK73: 0.4054999948 | BL73: 0.6369000077 | BM73: 0.5351999998 | BN73: 0.9995999932 | BO73: 0.3158000112 | BP73: 0.6765000224 | BQ73: 0.3542000055 | BR73: 0.9794999957 | BS73: 0.3158999979 | BT73: 0.1071999967 | BU73: 0.0195000004 | BV73: 0.3617999852 | BW73: 0.2843999863 | BX73: 0.1052000001 | BY73: 0.5645999908 | BZ73: 0.3585999906 | CA73: 0.6478999853 | CB73: 0.2035000026 | CC73: 0.953700006 | CD73: 0.3898000121 | CE73: 0.2089000046 | CF73: 0.8068000078 | CG73: 0.534799993 | CH73: 0.7239999771 | CI73: 0.2241999954 | CJ73: 0.9575999975 | CK73: 0.7426999807 | CL73: 0.3691000044 | CM73: 0.7325000167 | CN73: 0.3517999947 | CO73: 0.0522999987 | CP73: 0.2127999961 | CQ73: 0.133100003 | CR73: 0.6043000221 | CS73: 0.1817999929 | CT73: 0.413500011 | CU73: 0.01370000001 | CV73: 0.7644000053
T74: 0.5454999804 | U74: 0.04050000012 | V74: 0.2286999971 | W74: 0.08169999719 | X74: 0.9570999742 | Y74: 0.9649999738 | Z74: 0.2269999981 | AA74: 0.02160000056 | AB74: 0.5831000209 | AC74: 0.0003999999899 | AD74: 0.6305999756 | AE74: 0.5309000015 | AF74: R / x quer Karte Darstellung | AP74: 0.9972000122 | AQ74: 0.224999994 | AR74: 0.7433999777 | AS74: 0.2700999975 | AT74: 0.3815999925 | AU74: 0.159799993 | AV74: 0.9244999886 | AW74: 0.01999999955 | AX74: 0.502399981 | AY74: 0.9365000129 | AZ74: 0.4277999997 | BA74: 0.2603999972 | BB74: 0.7803999782 | BC74: 0.3546000123 | BD74: 0.6668999791 | BE74: 0.3129999936 | BF74: 0.5633999705 | BG74: 0.4334999919 | BH74: 0.3962000012 | BI74: 0.4767999947 | BJ74: 0.2666000128 | BK74: 0.9904000163 | BL74: 0.9767000079 | BM74: 0.2317000031 | BN74: 0.7628999949 | BO74: 0.4684999883 | BP74: 0.8913000226 | BQ74: 0.6912000179 | BR74: 0.02410000004 | BS74: 0.01510000043 | BT74: 0.5106999874 | BU74: 0.3059000075 | BV74: 0.01130000036 | BW74: 0.8095999956 | BX74: 0.1089000031 | BY74: 0.8162999749 | BZ74: 0.8154000044 | CA74: 0.641900003 | CB74: 0.1288000047 | CC74: 0.456099987 | CD74: 0.0476000011 | CE74: 0.7404000163 | CF74: 0.6978999972 | CG74: 0.4052999914 | CH74: 0.4805999994 | CI74: 0.8499000072 | CJ74: 0.393900007 | CK74: 0.4932999909 | CL74: 0.9384999871 | CM74: 0.560199976 | CN74: 0.2603999972 | CO74: 0.1519999951 | CP74: 0.4381999969 | CQ74: 0.8837000132 | CR74: 0.07220000029 | CS74: 0.6190999746 | CT74: 0.5792000294 | CU74: 0.08399999887 | CV74: 0.8514000177
T75: 0.390899986 | U75: 0.184799999 | V75: 0.7536000013 | W75: 0.6328999996 | X75: 0.9258000255 | Y75: 0.1926999986 | Z75: 0.1423999965 | AA75: 0.4794999957 | AB75: 0.5971000195 | AC75: 0.7951999903 | AD75: 0.7354999781 | AE75: 0.7483000159 | AF75: 0.8963999748 | AG75: =$D$17 -> Gerber | AJ75: =$G$17 -> Bohnert | AM75: =$J$17 -> Zimmer | AP75: 0.7940000296 | AQ75: 0.9042999744 | AR75: 0.8715000153 | AS75: 0.2633000016 | AT75: 0.6452000141 | AU75: 0.5149000287 | AV75: 0.7965999842 | AW75: 0.4666999876 | AX75: 0.3486000001 | AY75: 0.7136999965 | AZ75: 0.5236999989 | BA75: 0.5649999976 | BB75: 0.4650999904 | BC75: 0.3799000084 | BD75: 0.7275999784 | BE75: 0.5960000157 | BF75: 0.6937000155 | BG75: 0.9794999957 | BH75: 0.3226000071 | BI75: 0.8798000216 | BJ75: 0.886500001 | BK75: 0.5188000202 | BL75: 0.6025000215 | BM75: 0.5970000029 | BN75: 0.3143999875 | BO75: 0.746999979 | BP75: 0.6319000125 | BQ75: 0.6164000034 | BR75: 0.1831 | BS75: 0.6097999811 | BT75: 0.8863999844 | BU75: 0.5735999942 | BV75: 0.3984999955 | BW75: 0.9523000121 | BX75: 0.1436000019 | BY75: 0.199000001 | BZ75: 0.5820999742 | CA75: 0.4718999863 | CB75: 0.6230000257 | CC75: 0.8956999779 | CD75: 0.3370999992 | CE75: 0.9218999743 | CF75: 0.3776000142 | CG75: 0.5677000284 | CH75: 0.7637000084 | CI75: 0.5644000173 | CJ75: 0.9337000251 | CK75: 0.698300004 | CL75: 0.2246000022 | CM75: 0.8733000159 | CN75: 0.182099998 | CO75: 0.6779999733 | CP75: 0.3610999882 | CQ75: 0.4875999987 | CR75: 0.5184000134 | CS75: 0.3824999928 | CT75: 0.3582000136 | CU75: 0.4142999947 | CV75: 0.2335000038
T76: 0.001000000047 | U76: 0.4607000053 | V76: 0.4819999933 | W76: 0.1546999961 | X76: 0.1146000028 | Y76: 0.738499999 | Z76: 0.04349999875 | AA76: 0.5360000134 | AB76: 0.02370000072 | AC76: 0.1022000015 | AD76: 0.929099977 | AE76: 0.1986999959 | AF76: 0.3267999887 | AG76: Range | AH76: x quer | AI76: 0.5691000223 | AJ76: Range | AK76: x quer | AL76: 0.6499000192 | AM76: Range | AN76: s | AO76: 0.9222000241 | AP76: 0.7483999729 | AQ76: 0.7781999707 | AR76: 0.8507999778 | AS76: 0.08439999819 | AT76: 0.2169000059 | AU76: 0.7566000223 | AV76: 0.01350000035 | AW76: 0.5526999831 | AX76: 0.1932000071 | AY76: 0.934499979 | AZ76: 0.4097000062 | BA76: 0.8241999745 | BB76: 0.248300001 | BC76: 0.4111000001 | BD76: 0.3045000136 | BE76: 0.4163999856 | BF76: 0.8917999864 | BG76: 0.4700999856 | BH76: 0.4090999961 | BI76: 0.5081999898 | BJ76: 0.6499000192 | BK76: 0.3454000056 | BL76: 0.584100008 | BM76: 0.8299999833 | BN76: 0.3935000002 | BO76: 0.2369000018 | BP76: 0.7928000093 | BQ76: 0.8048999906 | BR76: 0.9164000154 | BS76: 0.575699985 | BT76: 0.3039000034 | BU76: 0.9387000203 | BV76: 0.7633000016 | BW76: 0.5400999784 | BX76: 0.1451999992 | BY76: 0.4609999955 | BZ76: 0.3080999851 | CA76: 0.8212000132 | CB76: 0.8062000275 | CC76: 0.2154999971 | CD76: 0.08169999719 | CE76: 0.638100028 | CF76: 0.1914999932 | CG76: 0.8011000156 | CH76: 0.350699991 | CI76: 0.00419999985 | CJ76: 0.8238999844 | CK76: 0.9617999792 | CL76: 0.9448999763 | CM76: 0.2423000038 | CN76: 0.2973999977 | CO76: 0.2281000018 | CP76: 0.3359000087 | CQ76: 0.7504000068 | CR76: 0.9804999828 | CS76: 0.8069000244 | CT76: 0.9648000002 | CU76: 0.01720000058 | CV76: 0.9692000151
T77: 0.7228999734 | U77: 0.8206999898 | V77: 0.888199985 | W77: 0.290199995 | X77: 0.2083999962 | Y77: 0.2687000036 | Z77: 0.08060000092 | AA77: 0.3538999856 | AB77: 0.344599992 | AC77: 0.1279000044 | AD77: 0.9494000077 | AE77: 0.6578000188 | AF77: 1 | AG77: =IF(AG63="",NA(),AG63) -> 0.35 | AH77: =IF(AH63="",NA(),AH63) -> 0.4466666667 | AI77: 0.3734000027 | AJ77: 0.18 | AK77: 0.1333333333 | AL77: 0.09000000358 | AM77: 0.19 | AN77: -0.07333333333 | AO77: 0.6675000191 | AP77: 0.9517999887 | AQ77: 0.9998000264 | AR77: 0.503099978 | AS77: 0.739199996 | AT77: 0.7304000258 | AU77: 0.8460000157 | AV77: 0.668900013 | AW77: 0.3786000013 | AX77: 0.6510999799 | AY77: 0.8166999817 | AZ77: 0.8087999821 | BA77: 0.05310000107 | BB77: 0.5957000256 | BC77: 0.328700006 | BD77: 0.4846999943 | BE77: 0.638800025 | BF77: 0.2478999943 | BG77: 0.3937000036 | BH77: 0.4745999873 | BI77: 0.3646000028 | BJ77: 0.2338999957 | BK77: 0.1959999949 | BL77: 0.03790000081 | BM77: 0.01499999966 | BN77: 0.5124999881 | BO77: 0.9207999706 | BP77: 0.4307999909 | BQ77: 0.3831999898 | BR77: 0.01649999991 | BS77: 0.8327999711 | BT77: 0.6725999713 | BU77: 0.9743999839 | BV77: 0.5429000258 | BW77: 0.6036000252 | BX77: 0.5606999993 | BY77: 0.9588999748 | BZ77: 0.8934000134 | CA77: 0.8902999759 | CB77: 0.9363999963 | CC77: 0.3750999868 | CD77: 0.2653000057 | CE77: 0.1632999927 | CF77: 0.2006999999 | CG77: 0.5824999809 | CH77: 0.8923000097 | CI77: 0.7846999764 | CJ77: 0.07959999889 | CK77: 0.9653999805 | CL77: 0.9343000054 | CM77: 0.336499989 | CN77: 0.6402999759 | CO77: 0.8852999806 | CP77: 0.6190999746 | CQ77: 0.1984000057 | CR77: 0.5558999777 | CS77: 0.8845999837 | CT77: 0.6323000193 | CU77: 0.3759000003 | CV77: 0.6222000122
T78: 0.1393000036 | U78: 0.7580000162 | V78: 0.5789999962 | W78: 0.5220999718 | X78: 0.1624000072 | Y78: 0.7699000239 | Z78: 0.5494999886 | AA78: 0.8421999812 | AB78: 0.7570999861 | AC78: 0.5712000132 | AD78: 0.6399000287 | AE78: 0.3379000127 | AF78: 2 | AG78: =IF(AG64="",NA(),AG64) -> 0.12 | AH78: -0.6066666667 | AI78: 0.3995999992 | AJ78: 0.75 | AK78: -0.79 | AL78: 0.9818999767 | AM78: 0.42 | AN78: -1.156666667 | AO78: 0.6434999704 | AP78: 0.2194000036 | AQ78: 0.5859000087 | AR78: 0.6409000158 | AS78: 0.4492000043 | AT78: 0.7918000221 | AU78: 0.398999989 | AV78: 0.8600999713 | AW78: 0.06639999896 | AX78: 0.3664000034 | AY78: 0.647300005 | AZ78: 0.4494999945 | BA78: 0.5454000235 | BB78: 0.4375 | BC78: 0.1598999947 | BD78: 0.9843000174 | BE78: 0.9736999869 | BF78: 0.3052000105 | BG78: 0.3490000069 | BH78: 0.2903000116 | BI78: 0.6858000159 | BJ78: 0.5284000039 | BK78: 0.850399971 | BL78: 0.5225999951 | BM78: 0.02899999917 | BN78: 0.628000021 | BO78: 0.4142000079 | BP78: 0.4936999977 | BQ78: 0.3788000047 | BR78: 0.03979999945 | BS78: 0.04520000145 | BT78: 0.2511000037 | BU78: 0.404700011 | BV78: 0.3177999854 | BW78: 0.3941000104 | BX78: 0.9060000181 | BY78: 0.5857999921 | BZ78: 0.5873000026 | CA78: 0.397300005 | CB78: 0.7110999823 | CC78: 0.9763000011 | CD78: 0.2480999976 | CE78: 0.1680999994 | CF78: 0.3889999986 | CG78: 0.2213000059 | CH78: 0.9273999929 | CI78: 0.1374000013 | CJ78: 0.7099000216 | CK78: 0.8223000169 | CL78: 0.6830999851 | CM78: 0.4438999891 | CN78: 0.3201000094 | CO78: 0.6529999971 | CP78: 0.4569000006 | CQ78: 0.5748000145 | CR78: 0.8201000094 | CS78: 0.7246000171 | CT78: 0.7774000168 | CU78: 0.2569000125 | CV78: 0.0923999995
T79: 0.2018000036 | U79: 0.7134000063 | V79: 0.5965999961 | W79: 0.8801000118 | X79: 0.6679999828 | Y79: 0.07670000196 | Z79: 0.4709999859 | AA79: 0.6146000028 | AB79: 0.6414999962 | AC79: 0.8752999902 | AD79: 0.1682000011 | AE79: 0.4939999878 | AF79: 3 | AG79: =IF(AG65="",NA(),AG65) -> 0.17 | AH79: 1.26 | AI79: 0.9329000115 | AJ79: 0.4 | AK79: 1.156666667 | AL79: 0.386500001 | AM79: 0.42 | AN79: 0.88 | AO79: 0.2280000001 | AP79: 0.3404999971 | AQ79: 0.0167999994 | AR79: 0.2781000137 | AS79: 0.8109999895 | AT79: 0.6991999745 | AU79: 0.2612999976 | AV79: 0.8330000043 | AW79: 0.5314000249 | AX79: 0.6330999732 | AY79: 0.4244999886 | AZ79: 0.6981999874 | BA79: 0.1216000021 | BB79: 0.5551000237 | BC79: 0.8309000134 | BD79: 0.2125999928 | BE79: 0.6274999976 | BF79: 0.140200004 | BG79: 0.01700000092 | BH79: 0.07940000296 | BI79: 0.001900000032 | BJ79: 0.3424000144 | BK79: 0.6841999888 | BL79: 0.5066999793 | BM79: 0.6832000017 | BN79: 0.6590999961 | BO79: 0.9021999836 | BP79: 0.59799999 | BQ79: 0.4230999947 | BR79: 0.6475999951 | BS79: 0.5619000196 | BT79: 0.9930999875 | BU79: 0.3650000095 | BV79: 0.6902999878 | BW79: 0.07869999856 | BX79: 0.758400023 | BY79: 0.3720000088 | BZ79: 0.0103000002 | CA79: 0.3454000056 | CB79: 0.5278000236 | CC79: 0.6050999761 | CD79: 0.9373999834 | CE79: 0.9355999827 | CF79: 0.8931000233 | CG79: 0.3510999978 | CH79: 0.4230999947 | CI79: 0.5566999912 | CJ79: 0.0449000001 | CK79: 0.1011999995 | CL79: 0.807099998 | CM79: 0.7527999878 | CN79: 0.662800014 | CO79: 0.8784999847 | CP79: 0.8319000006 | CQ79: 0.8582999706 | CR79: 0.05660000071 | CS79: 0.8166000247 | CT79: 0.9093000293 | CU79: 0.2005999982 | CV79: 0.5562999845
T80: 0.9876999855 | U80: 0.6355000138 | V80: 0.5534999967 | W80: 0.1532000005 | X80: 0.480399996 | Y80: 0.5569999814 | Z80: 0.8400999904 | AA80: 0.3903000057 | AB80: 0.7282000184 | AC80: 0.1860000044 | AD80: 0.08609999716 | AE80: 0.5031999946 | AF80: 4 | AG80: =IF(AG66="",NA(),AG66) ->  | AI80: 0.3619000018 | AL80: 0.2612999976 | AO80: 0.7434999943 | AP80: 0.08730000257 | AQ80: 0.266200006 | AR80: 0.6227999926 | AS80: 0.8100000024 | AT80: 0.6649000049 | AU80: 0.288500011 | AV80: 0.5406000018 | AW80: 0.3531000018 | AX80: 0.3973999918 | AY80: 0.2563999891 | AZ80: 0.391200006 | BA80: 0.788500011 | BB80: 0.3783000112 | BC80: 0.7014999986 | BD80: 0.1420000046 | BE80: 0.527700007 | BF80: 0.4365999997 | BG80: 0.9496999979 | BH80: 0.3781999946 | BI80: 0.1271000057 | BJ80: 0.9646999836 | BK80: 0.6363000274 | BL80: 0.7562000155 | BM80: 0.929700017 | BN80: 0.9965000153 | BO80: 0.4717000127 | BP80: 0.7070999742 | BQ80: 0.9550999999 | BR80: 0.5357999802 | BS80: 0.2574000061 | BT80: 0.3894999921 | BU80: 0.04030000046 | BV80: 0.134100005 | BW80: 0.1509999931 | BX80: 0.8923000097 | BY80: 0.2301000059 | BZ80: 0.7190999985 | CA80: 0.1825000048 | CB80: 0.6887000203 | CC80: 0.4183000028 | CD80: 0.6722999811 | CE80: 0.01940000057 | CF80: 0.3384999931 | CG80: 0.2377000004 | CH80: 0.1577000022 | CI80: 0.9825000167 | CJ80: 0.4415999949 | CK80: 0.2011000067 | CL80: 0.6994000077 | CM80: 0.3115999997 | CN80: 0.8410999775 | CO80: 0.09170000255 | CP80: 0.01020000037 | CQ80: 0.6812000275 | CR80: 0.07639999688 | CS80: 0.6039999723 | CT80: 0.06939999759 | CU80: 0.9657999873 | CV80: 0.08619999886
T81: 0.2339999974 | U81: 0.451000005 | V81: 0.2558000088 | W81: 0.1617999971 | X81: 0.4203999937 | Y81: 0.90200001 | Z81: 0.1230000034 | AA81: 0.1502999961 | AB81: 0.9345999956 | AC81: 0.1701000035 | AD81: 0.1362999976 | AE81: 0.9075000286 | AF81: 5 | AG81: =IF(AG67="",NA(),AG67) ->  | AI81: 0.9139999747 | AL81: 0.341899991 | AO81: 0.9157000184 | AP81: 0.5218999982 | AQ81: 0.08229999989 | AR81: 0.627399981 | AS81: 0.0008999999845 | AT81: 0.7917000055 | AU81: 0.8729000092 | AV81: 0.706099987 | AW81: 0.6632999778 | AX81: 0.3582000136 | AY81: 0.7613000274 | AZ81: 0.5264000297 | BA81: 0.9957000017 | BB81: 0.2313999981 | BC81: 0.7806000113 | BD81: 0.8015999794 | BE81: 0.4201999903 | BF81: 0.4571999907 | BG81: 0.8554999828 | BH81: 0.5705000162 | BI81: 0.3833999932 | BJ81: 0.00829999987 | BK81: 0.1301999986 | BL81: 0.2124000043 | BM81: 0.3095000088 | BN81: 0.9247999787 | BO81: 0.5469999909 | BP81: 0.7132999897 | BQ81: 0.8030999899 | BR81: 0.7048000097 | BS81: 0.6740000248 | BT81: 0.181099996 | BU81: 0.1030000001 | BV81: 0.9451000094 | BW81: 0.7835000157 | BX81: 0.6115999818 | BY81: 0.7846000195 | BZ81: 0.2316000015 | CA81: 0.1800999939 | CB81: 0.9035999775 | CC81: 0.7134000063 | CD81: 0.2802000046 | CE81: 0.7785000205 | CF81: 0.1252000034 | CG81: 0.2481999993 | CH81: 0.3273999989 | CI81: 0.9322000146 | CJ81: 0.02869999968 | CK81: 0.6940000057 | CL81: 0.7706000209 | CM81: 0.5109000206 | CN81: 0.8169999719 | CO81: 0.005100000184 | CP81: 0.05920000002 | CQ81: 0.2294999957 | CR81: 0.1586000025 | CS81: 0.7386000156 | CT81: 0.8346999884 | CU81: 0.2254000008 | CV81: 0.4532999992
T82: 0.2569000125 | U82: 0.3219000101 | V82: 0.8871999979 | W82: 0.34830001 | X82: 0.1816000044 | Y82: 0.9690999985 | Z82: 0.9322999716 | AA82: 0.5033000112 | AB82: 0.09589999914 | AC82: 0.3386999965 | AD82: 0.7355999947 | AE82: 0.6061999798 | AF82: 6 | AG82: =IF(AG68="",NA(),AG68) ->  | AI82: 0.3925999999 | AL82: 0.06970000267 | AO82: 0.8662999868 | AP82: 0.4981000125 | AQ82: 0.2484000027 | AR82: 0.9072999954 | AS82: 0.6391999722 | AT82: 0.004900000058 | AU82: 0.1608999968 | AV82: 0.1209999993 | AW82: 0.3937999904 | AX82: 0.80400002 | AY82: 0.8255000114 | AZ82: 0.1920000017 | BA82: 0.2366999984 | BB82: 0.3576000035 | BC82: 0.167899996 | BD82: 0.4052999914 | BE82: 0.1254999936 | BF82: 0.355399996 | BG82: 0.431400001 | BH82: 0.09359999746 | BI82: 0.8741999865 | BJ82: 0.9179999828 | BK82: 0.5672000051 | BL82: 0.4657999873 | BM82: 0.6690000296 | BN82: 0.04949999973 | BO82: 0.8751000166 | BP82: 0.6848000288 | BQ82: 0.8337000012 | BR82: 0.3409999907 | BS82: 0.8944000006 | BT82: 0.195600003 | BU82: 0.8452000022 | BV82: 0.923699975 | BW82: 0.543900013 | BX82: 0.3039000034 | BY82: 0.5997999907 | BZ82: 0.6719999909 | CA82: 0.5133000016 | CB82: 0.003500000108 | CC82: 0.9279999733 | CD82: 0.6564000249 | CE82: 0.9031000137 | CF82: 0.0549999997 | CG82: 0.3605999947 | CH82: 0.8470000029 | CI82: 0.1158000007 | CJ82: 0.3136999905 | CK82: 0.1444000006 | CL82: 0.06629999727 | CM82: 0.9961000085 | CN82: 0.3077000082 | CO82: 0.5073000193 | CP82: 0.1925999969 | CQ82: 0.2219000012 | CR82: 0.06620000303 | CS82: 0.1746000051 | CT82: 0.6129000187 | CU82: 0.9445000291 | CV82: 0.197300002
T83: 0.1340000033 | U83: 0.9261999726 | V83: 0.679700017 | W83: 0.2164999992 | X83: 0.6518999934 | Y83: 0.8963999748 | Z83: 0.4481000006 | AA83: 0.1246000007 | AB83: 0.5382000208 | AC83: 0.6557000279 | AD83: 0.1656000018 | AE83: 0.235799998 | AF83: 7 | AG83: =IF(AG69="",NA(),AG69) ->  | AI83: 0.8902000189 | AL83: 0.831700027 | AO83: 0.4419000149 | AP83: 0.6626999974 | AQ83: 0.1573999971 | AR83: 0.2845999897 | AS83: 0.256099999 | AT83: 0.7202000022 | AU83: 0.8795999885 | AV83: 0.6840000153 | AW83: 0.6110000014 | AX83: 0.2465000004 | AY83: 0.7774000168 | AZ83: 0.810100019 | BA83: 0.02400000021 | BB83: 0.8838000298 | BC83: 0.4869999886 | BD83: 0.0671999976 | BE83: 0.3445000052 | BF83: 0.8962000012 | BG83: 0.7781999707 | BH83: 0.4584999979 | BI83: 0.6259999871 | BJ83: 0.9355999827 | BK83: 0.2578000128 | BL83: 0.4760999978 | BM83: 0.4542999864 | BN83: 0.05739999935 | BO83: 0.3224999905 | BP83: 0.2422000021 | BQ83: 0.5256000161 | BR83: 0.9855999947 | BS83: 0.3623000085 | BT83: 0.8992999792 | BU83: 0.4742000103 | BV83: 0.6290000081 | BW83: 0.2134999931 | BX83: 0.2513000071 | BY83: 0.9516000152 | BZ83: 0.8465999961 | CA83: 0.8615999818 | CB83: 0.6538000107 | CC83: 0.9534999728 | CD83: 0.4632000029 | CE83: 0.3950000107 | CF83: 0.1544999927 | CG83: 0.3987999856 | CH83: 0.5349000096 | CI83: 0.2073999941 | CJ83: 0.8845000267 | CK83: 0.9570999742 | CL83: 0.8651000261 | CM83: 0.4514999986 | CN83: 0.698300004 | CO83: 0.1272999942 | CP83: 0.7696999907 | CQ83: 0.7419000268 | CR83: 0.06469999999 | CS83: 0.565500021 | CT83: 0.09300000221 | CU83: 0.1081999987 | CV83: 0.2073999941
T84: 0.6631000042 | U84: 0.47330001 | V84: 0.1981000006 | W84: 0.4954999983 | X84: 0.375 | Y84: 0.8582999706 | Z84: 0.7305999994 | AA84: 0.08449999988 | AB84: 0.2976999879 | AC84: 0.2712000012 | AD84: 0.1993999928 | AE84: 0.8065000176 | AF84: 8 | AG84: =IF(AG70="",NA(),AG70) ->  | AI84: 0.4893999994 | AL84: 0.3558000028 | AO84: 0.5286999941 | AP84: 0.9973999858 | AQ84: 0.825600028 | AR84: 0.8252999783 | AS84: 0.3107999861 | AT84: 0.5881999731 | AU84: 0.9919999838 | AV84: 0.7601000071 | AW84: 0.4550000131 | AX84: 0.560100019 | AY84: 0.1125999987 | AZ84: 0.5390999913 | BA84: 0.945200026 | BB84: 0.8572999835 | BC84: 0.1675000042 | BD84: 0.7849000096 | BE84: 0.2267999947 | BF84: 0.2062000036 | BG84: 0.7900000215 | BH84: 0.1597000062 | BI84: 0.625 | BJ84: 0.6934999824 | BK84: 0.5325000286 | BL84: 0.5691999793 | BM84: 0.7355999947 | BN84: 0.5943999887 | BO84: 0.3817999959 | BP84: 0.6152999997 | BQ84: 0.06539999694 | BR84: 0.4507000148 | BS84: 0.5249999762 | BT84: 0.2991000116 | BU84: 0.9233000278 | BV84: 0.398999989 | BW84: 0.3650000095 | BX84: 0.9746000171 | BY84: 0.560100019 | BZ84: 0.7486000061 | CA84: 0.7861999869 | CB84: 0.5512999892 | CC84: 0.5598999858 | CD84: 0.8098999858 | CE84: 0.6699000001 | CF84: 0.9473000169 | CG84: 0.480399996 | CH84: 0.9724000096 | CI84: 0.6601999998 | CJ84: 0.7929000258 | CK84: 0.7436000109 | CL84: 0.03269999847 | CM84: 0.1796000004 | CN84: 0.3833999932 | CO84: 0.7761999965 | CP84: 0.7730000019 | CQ84: 0.6945000291 | CR84: 0.8820000291 | CS84: 0.4005999863 | CT84: 0.7886999846 | CU84: 0.2307000011 | CV84: 0.7735999823
T85: 0.475300014 | U85: 0.5669000149 | V85: 0.139500007 | W85: 0.5670999885 | X85: 0.7853999734 | Y85: 0.8144999743 | Z85: 0.1127000004 | AA85: 0.7491999865 | AB85: 0.1835999936 | AC85: 0.03620000184 | AD85: 0.4487999976 | AE85: 0.9872999787 | AF85: 9 | AG85: =IF(AG71="",NA(),AG71) ->  | AI85: 0.703700006 | AL85: 0.891200006 | AO85: 0.01260000002 | AP85: 0.9804000258 | AQ85: 0.3626999855 | AR85: 0.5681999922 | AS85: 0.5823000073 | AT85: 0.5852000117 | AU85: 0.6287000179 | AV85: 0.7792000175 | AW85: 0.1723999977 | AX85: 0.3964000046 | AY85: 0.701300025 | AZ85: 0.2930999994 | BA85: 0.6854000092 | BB85: 0.9423999786 | BC85: 0.05779999867 | BD85: 0.4905000031 | BE85: 0.5428000093 | BF85: 0.2720000148 | BG85: 0.6140000224 | BH85: 0.4363000095 | BI85: 0.1118000001 | BJ85: 0.5953000188 | BK85: 0.8023999929 | BL85: 0.6457999945 | BM85: 0.4095000029 | BN85: 0.1741999984 | BO85: 0.9000999928 | BP85: 0.0998999998 | BQ85: 0.05530000106 | BR85: 0.4625999928 | BS85: 0.6072000265 | BT85: 0.5110999942 | BU85: 0.4742999971 | BV85: 0.4979000092 | BW85: 0.8747000098 | BX85: 0.8389000297 | BY85: 0.3504000008 | BZ85: 0.5407999754 | CA85: 0.9825000167 | CB85: 0.05559999868 | CC85: 0.3292999864 | CD85: 0.9664000273 | CE85: 0.8680999875 | CF85: 0.1617999971 | CG85: 0.9721000195 | CH85: 0.4045999944 | CI85: 0.7041000128 | CJ85: 0.4517999887 | CK85: 0.9575999975 | CL85: 0.1308999956 | CM85: 0.7267000079 | CN85: 0.0298999995 | CO85: 0.5361999869 | CP85: 0.7069000006 | CQ85: 0.3136000037 | CR85: 0.5752000213 | CS85: 0.2326000035 | CT85: 0.8708000183 | CU85: 0.3122000098 | CV85: 0.3578000069
T86: 0.7990999818 | U86: 0.6784999967 | V86: 0.6179999709 | W86: 0.5042999983 | X86: 0.418599993 | Y86: 0.893599987 | Z86: 0.002099999925 | AA86: 0.513199985 | AB86: 0.1577000022 | AC86: 0.6286000013 | AD86: 0.1900999993 | AE86: 0.02080000006 | AF86: 10 | AG86: =IF(AG72="",NA(),AG72) ->  | AI86: 0.5613999963 | AL86: 0.454400003 | AO86: 0.5388000011 | AP86: 0.6701999903 | AQ86: 0.2349999994 | AR86: 0.1895000041 | AS86: 0.8167999983 | AT86: 0.1495999992 | AU86: 0.4442999959 | AV86: 0.8683000207 | AW86: 0.1097000018 | AX86: 0.5328999758 | AY86: 0.7585999966 | AZ86: 0.7829999924 | BA86: 0.04259999841 | BB86: 0.9531000257 | BC86: 0.09109999985 | BD86: 0.2565999925 | BE86: 0.4589000046 | BF86: 0.4426999986 | BG86: 0.6564999819 | BH86: 0.7070000172 | BI86: 0.9176999927 | BJ86: 0.8869000077 | BK86: 0.1123000011 | BL86: 0.2246000022 | BM86: 0.9595999718 | BN86: 0.2264000028 | BO86: 0.9487000108 | BP86: 0.4013000131 | BQ86: 0.6222000122 | BR86: 0.9106000066 | BS86: 0.1296000034 | BT86: 0.4077000022 | BU86: 0.2058999985 | BV86: 0.6011000276 | BW86: 0.9832000136 | BX86: 0.3215999901 | BY86: 0.2894000113 | BZ86: 0.1243000031 | CA86: 0.342599988 | CB86: 0.7064999938 | CC86: 0.9952999949 | CD86: 0.6747999787 | CE86: 0.9363999963 | CF86: 0.4390999973 | CG86: 0.5058000088 | CH86: 0.268599987 | CI86: 0.02930000052 | CJ86: 0.787800014 | CK86: 0.8282999992 | CL86: 0.4460000098 | CM86: 0.3125999868 | CN86: 0.7405999899 | CO86: 0.8108999729 | CP86: 0.224999994 | CQ86: 0.04540000111 | CR86: 0.5835000277 | CS86: 0.4083000124 | CT86: 0.3039999902 | CU86: 0.4444000125 | CV86: 0.7285000086
T87: 0.197300002 | U87: 0.5152999759 | V87: 0.3251999915 | W87: 0.7914999723 | X87: 0.1422999948 | Y87: 0.5282999873 | Z87: 0.9925000072 | AA87: 0.9208999872 | AB87: 0.6110000014 | AC87: 0.8022999763 | AD87: 0.3808000088 | AE87: 0.3750999868 | AF87: 0.6399999857 | AG87: 0.7896000147 | AH87: 0.4454999864 | AI87: 0.3513999879 | AJ87: 0.4507000148 | AK87: 0.3890999854 | AL87: 0.8026000261 | AM87: 0.06340000033 | AN87: 0.2144999951 | AO87: 0.6488000154 | AP87: 0.6204000115 | AQ87: 0.06939999759 | AR87: 0.06859999895 | AS87: 0.7195000052 | AT87: 0.7590000033 | AU87: 0.8508999944 | AV87: 0.3817000091 | AW87: 0.05759999901 | AX87: 0.1621000022 | AY87: 0.6399000287 | AZ87: 0.2698000073 | BA87: 0.878099978 | BB87: 0.4966999888 | BC87: 0.4979000092 | BD87: 0.3610999882 | BE87: 0.8582000136 | BF87: 0.04399999976 | BG87: 0.6434000134 | BH87: 0.8126000166 | BI87: 0.08990000188 | BJ87: 0.840200007 | BK87: 0.03030000068 | BL87: 0.5749999881 | BM87: 0.2836000025 | BN87: 0.06710000336 | BO87: 0.175999999 | BP87: 0.9085000157 | BQ87: 0.2206999958 | BR87: 0.6924999952 | BS87: 0.2396000028 | BT87: 0.1486999989 | BU87: 0.4573000073 | BV87: 0.3609000146 | BW87: 0.3497000039 | BX87: 0.7220000029 | BY87: 0.2768000066 | BZ87: 0.5343999863 | CA87: 0.1828999966 | CB87: 0.4111000001 | CC87: 0.8934999704 | CD87: 0.8830000162 | CE87: 0.7918000221 | CF87: 0.8708000183 | CG87: 0.9052000046 | CH87: 0.9251999855 | CI87: 0.6830000281 | CJ87: 0.3937000036 | CK87: 0.996900022 | CL87: 0.918900013 | CM87: 0.1454000026 | CN87: 0.9255999923 | CO87: 0.8934000134 | CP87: 0.001900000032 | CQ87: 0.8281999826 | CR87: 0.3314999938 | CS87: 0.5630000234 | CT87: 0.5824999809 | CU87: 0.5691999793 | CV87: 0.91049999
T88: 0.6697999835 | U88: 0.9800000191 | V88: 0.4726999998 | W88: 0.1624000072 | X88: 0.277700007 | Y88: 0.3156000078 | Z88: 0.2375999987 | AA88: 0.8023999929 | AB88: 0.8030999899 | AC88: 0.6528000236 | AD88: 0.7358999848 | AE88: 0.02749999985 | AF88: 0.2178999931 | AG88: 0.3883000016 | AH88: 0.8403999805 | AI88: 0.03159999847 | AJ88: 0.5027999878 | AK88: 0.8920999765 | AL88: 0.503099978 | AM88: 0.7712000012 | AN88: 0.3506000042 | AO88: 0.3986000121 | AP88: 0.08320000023 | AQ88: 0.9812999964 | AR88: 0.119099997 | AS88: 0.147300005 | AT88: 0.9253000021 | AU88: 0.4406999946 | AV88: 0.03400000185 | AW88: 0.7730000019 | AX88: 0.1872999966 | AY88: 0.4878999889 | AZ88: 0.6424999833 | BA88: 0.9465000033 | BB88: 0.918900013 | BC88: 0.7865999937 | BD88: 0.5163999796 | BE88: 0.2657000124 | BF88: 0.3894000053 | BG88: 0.3411000073 | BH88: 0.2046000063 | BI88: 0.3955000043 | BJ88: 0.6660000086 | BK88: 0.7623999715 | BL88: 0.4370999932 | BM88: 0.4591999948 | BN88: 0.4420000017 | BO88: 0.7835000157 | BP88: 0.5773000121 | BQ88: 0.6784999967 | BR88: 0.1145000011 | BS88: 0.02490000054 | BT88: 0.3258000016 | BU88: 0.2642999887 | BV88: 0.1130999997 | BW88: 0.01080000028 | BX88: 0.6730999947 | BY88: 0.5576000214 | BZ88: 0.4776000082 | CA88: 0.4339999855 | CB88: 0.1028999984 | CC88: 0.4196999967 | CD88: 0.6865000129 | CE88: 0.6721000075 | CF88: 0.04520000145 | CG88: 0.8731999993 | CH88: 0.7344999909 | CI88: 0.5526999831 | CJ88: 0.5795000196 | CK88: 0.992299974 | CL88: 0.4614000022 | CM88: 0.3693000078 | CN88: 0.3876000047 | CO88: 0.04369999841 | CP88: 0.1296000034 | CQ88: 0.1469999999 | CR88: 0.9573000073 | CS88: 0.8770999908 | CT88: 0.2527999878 | CU88: 0.1577000022 | CV88: 0.03480000049
W431: 2019-09-12

Sheet info
B2: Sie benutzen eine Vorlage von sixsigmblackbelt.de
B4: Diese Version hat einige Einschränkungen
B5: ="- Sie müssen die Datei mit der Endung .xlsm speichern, ansonsten gehen Funktionalitäten verloren" -> - Sie müssen die Datei mit der Endung .xlsm speichern, ansonsten gehen Funktionalitäten verloren
B7: Haben Sie Fragen,
B8: wenden Sie sich bitte per Mail an | D8: roland.schnurr@sixsigmablackbelt.de
